Workbook

Sheet 3-1 Available-NOx
A1: Table 3-1. GVEA North Pole Facility - Summary of Available NOX Emission Control Technologies
A3: Emission Unit | C3: Available Control Technologies
A4: ID | B4: Description
A6: 1, 2 | B6: Simple Cycle Gas Turbine | C6: SCR
C7: Water Injection
C8: Limited Operation
C9: Good Combustion Practices
A10: 5, 6 | B10: Combined Cycle Gas Turbine | C10: SCR
C11: Water Injection
C12: Good Combustion Practices
A13: 7 | B13: Emergency Generator Engine | C13: SCR
C14: Turbocharger and Aftercooler
C15: FITR
C16: ITR
C17: Limited Operation
C18: Good Combustion Practices
A19: 11, 12 | B19: Propane-Fired Boiler | C19: Low NOX
C20: FGR
C21: Fuel Type
C22: Good Combustion Practices

Sheet 3-2 Feasible-NOx
A1: Table 3-2. GVEA North Pole Facility - Summary of Technically Feasible NOX Emission Control Technologies
A3: Emission Unit | C3: Technically Feasible Control Options
A4: ID | B4: Description
A6: 1, 2 | B6: Simple Cycle Gas Turbine | C6: SCR + Water Injection
C7: SCR
C8: Water Injection
C9: Limited Operation
A10: 5, 6 | B10: Combined Cycle Gas Turbine | C10: SCR + Water Injection
C11: Water Injection
A12: 7 | B12: Emergency Generator Engine | C12: SCR
C13: Turbocharger + Aftercooler
C14: Limited Operation
C15: Good Combustion Practices
A16: 11, 12 | B16: Propane-Fired Boiler | C16: Low NOX
C17: Good Combustion Practices

Sheet 3-3 Ranking-NOx
A1: Table 3-3. GVEA North Pole Facility - Ranking of Technically Feasible NOX Emission Control Technologies
A3: Emission Unit | C3: Control Technology Used | D3: Control Efficiency (pct.) | E3: NOX Emissions Per Unit (tpy) | F3: NOX Emission Reduction (tpy)
A4: ID | B4: Description
A6: 1 | B6: Simple Cycle Gas Turbine | C6: SCR + Water Injection | D6: 90 | E6: =E$9*(1-(D6/100)) -> 160 | F6: =E$9-E6 -> 1440
C7: SCR | D7: 85 | E7: =E$9*(1-(D7/100)) -> 240 | F7: =E$9-E7 -> 1360
C8: Water Injection | D8: 73 | E8: =E$9*(1-(D8/100)) -> 432 | F8: =E$9-E8 -> 1168
C9: Limited Operation (existing)1 | D9: 38.2 | E9: 1600 | F9: 0
C10: Good Combustion Practices2 | D10: 0 | E10: 2590 | F10: N/A
A11: 2 | B11: Simple Cycle Gas Turbine | C11: Limited Operation + SCR + Water Injection | D11: 90 | E11: =E$14*(1-(D11/100)) -> 236.3 | F11: =E$14-E11 -> 2126.7
C12: Limited Operation + SCR | D12: 85 | E12: =E$14*(1-(D12/100)) -> 354.45 | F12: =E$14-E12 -> 2008.55
C13: Limited Operation + Water Injection | D13: 73 | E13: =E$14*(1-(D13/100)) -> 638.01 | F13: =E$14-E13 -> 1724.99
C14: Limited Operation (existing)3 | D14: 0 | E14: 2363 | F14: N/A
A15: 5, 6 | B15: Combined Cycle Gas Turbine | C15: SCR + Water Injection4 | D15: 90 | E15: =E$16*(1-(D15/100)) -> 47.83 | F15: =E$16-E15 -> 430.47
C16: Water Injection (existing)1 | D16: =((8.8-2.4)/8.8)*100 -> 72.72727273 | E16: 478.3 | F16: N/A
C17: Good Combustion Practices4 | D17: 0 | E17: =E16/((100-D16)/100) -> 1753.766667 | F17: N/A
A18: 7 | B18: Emergency Generator Engine | C18: Turbocharger and Aftercooler + Limited Operation + SCR | D18: 90 | E18: =E$19*(1-(D18/100)) -> 0.05 | F18: =E$19-E18 -> 0.45
C19: Turbocharger and Aftercooler + Limited Operation5 (existing) | D19: 0 | E19: 0.5 | F19: N/A
A20: 11, 12 | B20: Propane-Fired Boiler | C20: Low NOX | D20: 80 | E20: =E$21*(1-(D20/100)) -> 0.62 | F20: =$E$21-E20 -> 2.48
C21: Good Combustion Practices (existing) | D21: 0 | E21: 3.1 | F21: N/A
A23: Notes.
A24: 1 Combined emissions from EU IDs 1, 5, and 6 are limited to 1,600 tpy on a 12-month rolling period per Permit AQ0110TVP03, Condition 13. EU ID 1 can individually emit up to 1,600 tpy and EU IDs 5 and 6 can each individually emit up to 478.3 tpy. Note that NOX emissions from EU ID 1 are based on the control efficiency and maximum potential emissions from good combustion practices. The NOX emission reduction for all EU 1 control technologies other than good combustion practices are based on the potential NOX of 1,600 tpy.
A25: 2 Emissions from good combustion practices are included because the resulting potential emissions after applying the control efficiencies of the various emission control technologies under consideration render the existing ORL unnecessary. As a result, the PTE for the emission control technology options is based on the PTE represented by good combustion practices.
A26: 3 EU ID 2 is limited to operating no more than 7,992 hours in a 12-month rolling period by Permit AQ0110TVP03, Condition 12.
A27: 4 Emissions from good combustion practices are included to show the uncontrolled PTE. The PTE for SCR and water injection is based on a 90 percent reduction from the uncontrolled emissions, while the emissions reduction due to the addition of SCR is the difference between the PTE for water injection and the PTE for SCR and water injection.
A28: 5 EU ID 7 is limited to operating no more than 52 hours in a 12-month rolling period by Permit AQ0110TVP03, Condition 10.

Sheet 3-4 EU 1 SCR_WI TCI
B1: Table 3-4. GVEA North Pole Facility - Capital Costs for SCR and Water Injection on the Diesel-fired Simple Cycle Gas Turbine (EU ID 1)
J3: Shaded cells indicate user inputs.
B4: Total Capital Investment Determination - Water Injection + SCR | J4: Date:
B5: Project: | D5: GVEA North Pole PM2.5 BACT Analysis - Frame 7E CT (EU ID 1) | J5: Prepared By:
J6: Checked By:
B7: *Notes regarding pertinent cost information and cost exclusion reasoning is included on the separate footnote reference page. | J7: Rev:
B8: Capital Costs
B9: DIRECT COSTS | E9: QTY | F9: UNIT | G9: UNIT COST | H9: TOTAL MATERIALS COST | I9: TOTAL LABOR COST
B11: (1) | C11: Purchased equipment and material costs
C12: (a) | D12: Basic equipment
D13: Water Injection1 | E13: 1 | F13: EA | G13: 2000000 | H13: =E13*G13 -> 2000000
D14: SCR2,3 | E14: 1 | F14: EA | G14: 5000000 | H14: =E14*G14 -> 5000000
D15: Reagent Prep/Water Treatment/Structure | E15: 1 | G15: =9338000/2 -> 4669000 | H15: =E15*G15 -> 4669000 | J15: TOTAL = | K15: =SUM(H13:H15) -> 11669000
C17: (b) | D17: Instrumentation
D18: Total Instrumentation4 | F18: EA | H18: =E18*G18 -> 0
J19: TOTAL = | K19: =SUM(H18:H18) -> 0
C20: (c) | D20: Freight
D21: Injection System Freight | F21: % MATL COST | I21: =G21*H13 -> 0
J22: TOTAL = | K22: =SUM(I21:I21) -> 0
C23: (d) | D23: Labor
D24: Labor - offsite fab | F24: MH | I24: =E24*G24 -> 0
D25: Labor - onsite | F25: MH | I25: =E25*G25 -> 0
C27: (e ) | D27: Startup Spares
D28: Startup Spare Parts for SCR | E28: 0.005 | F28: % | H28: =E28*G14 -> 25000
J29: TOTAL = | K29: =H28 -> 25000
C30: (f) | D30: Vendor representatives fees
D31: Fab Site Vendor Representatives fees (enter no. of days and daily rate) | E31: 10 | F31: Days | G31: 1800 | I31: =G31*E31 -> 18000
D32: Onsite Vendor Representatives fees (enter no. of days and daily rate) | E32: 8 | F32: Days | G32: 2500 | I32: =G32*E32 -> 20000
J33: TOTAL = | K33: =SUM(I31:I32) -> 38000
B34: Purchased Equipment and Material Cost (PEMC) | E34: All above costs included in vendor scope except SCR spares and SCR vendor rep. fees | J34: PEMC = | K34: =SUM(K13:K33) -> 11732000
B36: (2) | C36: Direct Installation Costs5,6
C37: (a) | D37: Concrete | F37: CY | H37: =E37*G37 -> 0 | K37: =H37+I37 -> 0
C38: (b) | D38: Piling | F38: TON | H38: =E38*G38 -> 0 | K38: =H38+I38 -> 0
C39: (c) | D39: Structural steel | F39: TON | H39: 0 | K39: 0
C40: (d) | D40: Electrical | F40: LOT | H40: 0 | K40: 0
C41: (e ) | D41: Painting | F41: SF | H41: 0 | K41: 0
C42: (f) | D42: Insulation | F42: LOT | H42: 0 | K42: 0
C43: (g) | D43: Abovegrade piping | F43: LF | H43: 0 | K43: 0
C44: (h) | D44: Functional Checkouts
D45: Functional Checkout - fab site, enter %: | F45: % offsite fab labor | I45: =G45*I24 -> 0 | K45: 0
D46: Functional Checkout - onsite, enter % | F46: % onsite fab labor | I46: =G46*I25 -> 0 | K46: 0
D47: Contractor Commissioning, enter %: | F47: % of equipment total cost | I47: =G47*K15 -> 0 | K47: 0
B48: Direct Installation Costs (DIC) | J48: DIC = | K48: =(H13*0.5)+(H14*2) -> 11000000
B51: Total Direct Costs (TDC) | J51: TDC = (PEMC) + (DIC) = | K51: =K34+K48 -> 22732000
B54: INDIRECT COSTS
B55: (3) | C55: Engineering, Procurement & Construction Support Services | E55: 0.22 | F55: % TDC | I55: =E55*K51 -> 5001040
B56: (4) | C56: Performance tests | E56: 1 | F56: EA | G56: 10000 | I56: =E56*G56 -> 10000
B57: Total Indirect Costs (TIC) | J57: TIC = | K57: =SUM(I55:I56) -> 5011040
B60: MANAGEMENT AND CONTINGENCY COSTS
B61: (5) | C61: Unit Operator Costs7 | F61: % TDC | K61: Excluded in this estimate.
B62: (6) | C62: Contingency | E62: 0.3 | F62: % PEMC | I62: =E62*K34 -> 3519600
B63: Total Management and Contingency Costs (TM&CC) | J63: TM & CC = | K63: =SUM(I61:I62) -> 3519600
B66: TOTAL CAPITAL INVESTMENT (TCI) | J66: TCI = (TDC)+(TIC)+(TM&CC) = | K66: =K51+K57+K63 -> 31262640
B69: 1 | C69: For the water injection option, costs have been estimated to expand water treatment capacity. Consideration of source water (i.e. wells) would likely be an additional factor.
B70: 2 | C70: Source of SCR Capital Costs: ATCO Emissions Management. These were supply-only costs given in a range for the Frame 7s. The high point of the range provided ($3 – $5 million) was used, see discussion in separately submitted CBI package.
B71: 3 | C71: ATCO was aware that the preferred reagent was urea, however they did not specify any capital costs for reagent prep. Costs for reagent prep equipment and additional structures are discussed in a separately submitted CBI package.
B72: 4 | C72: Continuous emissions monitoring system is included in capital costs under Reagent Prep/Water Treatment/Structure.
B73: 5 | C73: Construction costs associated directly with SCR installation were conservatively estimated at double the capital cost. This seems reasonable given the current footprint of the turbine building. Additional structure costs were included under part (1)(a) This should be viewed as an engineering estimate only.
B74: 6 | C74: Construction costs associated directly with water injection installation was conservatively estimated at half the capital cost. This is based on the assumption that some water treatment system work in addition to SCR treated water needs will be required to add water injection. This should be viewed as an engineering estimate only.
B75: 7 | C75: Unit operator costs were excluded as these costs were not specified in vendor quotes and/or appropriate literature.
B76: 8 | C76: Annual direct cost for SCR power consumption were excluded as vendor quotes did not specify system power requirements. However the reagent solutions will require continual heating to keep them in in liquid form and a notable station load compared to the unit actual operation is expected.

Sheet 3-5 EU 1 SCR_WI CE
B1: Table 3-5. GVEA North Pole Facility - Annualized Costs for SCR and Water Injection on
B2: the Diesel-fired Simple Cycle Gas Turbine (EU ID 1)
I3: Shaded cells indicate user inputs
B4: Cost Effectiveness Determination - Water Injection + SCR | J4: Date:
B5: Project: | D5: GVEA North Pole PM2.5 BACT Analysis - Frame 7E CT (EU ID 1) | J5: Prepared By:
J6: Checked By:
B7: *Notes regarding pertinent cost information and cost exclusion reasoning is included on the separate footnote reference page. | J7: Rev:
B8: Annualized Costs
B9: DIRECT ANNUAL COSTS | E9: QTY | F9: UNIT | G9: UNIT COST | H9: TOTAL MATERIALS COST | I9: TOTAL LABOR COST | K9: TOTAL
B10: (1) | C10: Operating Labor | E10: =E13*2 -> 730 | F10: MH | G10: 105 | I10: =E10*G10 -> 76650 | K10: =I10 -> 76650
B11: (2) | C11: Supervisory Labor | E11: =E13/2 -> 182.5 | F11: MH | G11: 125 | I11: =E11*G11 -> 22812.5 | K11: =I11 -> 22812.5
B12: (3) | C12: Maintenance Labor (water treatment) | E12: =E16*1.29 -> 38814.74661 | F12: 1000 GALS | G12: =0.7*(1.05^25) -> 2.370448459 | I12: =E12*G12 -> 92008.35627 | K12: 92008.35627
B13: (4) | C13: Maintenance Labor (SCR system) | E13: =365*E56/100 -> 365 | F13: MH | G13: 105 | I13: =E13*G13 -> 38325 | K13: =I13 -> 38325
B14: (5) | C14: Maintenance Materials | F14: LOT | H14: =E14*G14 -> 0 | I14: Included in water treatment below | K14: =H14 -> 0
B15: (6) | C15: Utilities
C16: a) | D16: Water Use: | E16: =E18*0.81*7.21/(8.34*1000) -> 30088.95086 | F16: 1000 GALS | G16: =0.384*(1.05^25) -> 1.300360297 | H16: =E16*G16 -> 39126.47708 | K16: =H16 -> 39126.47708
C17: b) | D17: Water Pump Energy: | E17: =64.8*0.161*8760 -> 91391.328 | F17: kWh | G17: 0.18 | H17: =E17*G17 -> 16450.43904 | K17: =H17 -> 16450.43904
C18: c) | D18: CT Fuel Use: | E18: =672/137*1000*8760 -> 42968759.12 | F18: GALS
C19: d) | D19: Fuel Penalty: | E19: =E18*0.035*0.81 -> 1218164.321 | F19: GALS | G19: 1.7 | H19: =E19*G19 -> 2070879.346 | K19: =H19 -> 2070879.346
C20: e) | D20: Water Treatment Capacity: | E20: =E16*1.3*1.29 -> 50459.17059 | F20: 1000 GALS | G20: =1.97*(1.05^25) -> 6.671119234 | H20: =E20*G20 -> 336619.1434 | K20: =H20 -> 336619.1434
C21: f) | D21: Water Waste Disposal: | E21: =E20*0.29 -> 14633.15947 | F21: 1000 GALS | G21: =3.82*(1.05^25) -> 12.93587587 | H21: =E21*G21 -> 189292.7346 | K21: =H21 -> 189292.7346
C22: g) | D22: Urea/DEF: | E22: =(1440-1232)*(60)*2*2.2/2000 -> 27.456 | F22: TON | G22: 356 | H22: =E22*G22 -> 9774.336 | K22: =H22 -> 9774.336
C23: h) | D23: SCR Energy Use8: | F23: kWh | G23: 0.18 | H23: Excluded in this estimate. | K23: =G23*E23 -> 0
B25: (7) | C25: Catalyst Replacement Costs (every 3 years)
C26: (a) | D26: Replacement of SCR Catalyst: % of total equipment cost | E26: 0.3 | F26: % total equip | G26: ='3-4 EU 1 SCR_WI TCI'!H14 -> 5000000 | H26: =G26*E26 -> 1500000 | K26: =H26*E31 -> 466577.4985
C27: (b) | D27: Replacement labor for SCR Catalyst | E27: 180 | F27: MH | G27: 105 | I27: =E27*G27 -> 18900 | K27: =I27*E31 -> 5878.876481
C28: (c) | D28: Transport cost direct to site (SCR catalyst) | E28: 0.13 | F28: % replacement | I28: =E28*(H26) -> 195000 | K28: =I28*E31 -> 60655.07481
C29: (d) | D29: Transport cost for spent SCR catalyst | E29: 0.13 | F29: % replacement | I29: =E29*H26 -> 195000 | K29: =I29*E31 -> 60655.07481
B31: Sinking Fund Factor [see inputs below]: | E31: =($E$53/100)/(POWER(1+($E$53/100),($E$55)/($E$56/100))-1) -> 0.3110516657
B33: Total Direct Annual Costs (TDAC) | J33: TDAC = | K33: =SUM(K10:K32) -> 3485704.857
B35: INDIRECT ANNUAL COSTS
B36: (8) | C36: Overhead | E36: 0.3 | F36: % WT Labor | I36: =E36*I12 -> 27602.50688 | K36: =I36 -> 27602.50688
B37: (9) | C37: Administrative Charges, Property Taxes, Insurance | E37: 0.04 | F37: % total capital | I37: =E37*'3-4 EU 1 SCR_WI TCI'!K66 -> 1250505.6 | K37: =I37 -> 1250505.6
C38: Capital Recovery Factor [see inputs below] | E38: =($E$53/100*POWER((1+($E$53/100)),$E$54))/((POWER(((1+$E$53/100)),$E$54))-1) -> 0.09439292574
B39: (10) | C39: Capital Recovery | J39: CRF * TCI = | K39: =E38*'3-4 EU 1 SCR_WI TCI'!K66 -> 2950972.056
B41: Total Indirect Annual Costs (TIAC) | J41: TIAC = | K41: =SUM(K34:K39) -> 4229080.163
B43: TOTAL ANNUALIZED COSTS (TAC) | J43: TAC = (TDAC) + (TIAC) = | K43: =K33+K41 -> 7714785.02
B45: Cost Effectiveness Summary
B47: TOTAL TONS NOx AVOIDED PER YEAR | J47: = | K47: ='3-3 Ranking-NOx'!F6 -> 1440
B49: COST EFFECTIVENESS ($ PER TON AVOIDED BASED ON PTE) | J49: (TAC)/(TPY) = | K49: =K43/K47 -> 5357.489597
B50: COST EFFECTIVENESS ($ PER TON AVOIDED BASED ON ACTUALS, AVOIDING 222 TONS PER YEAR)9 | J50: (TAC)/(TPY) = | K50: =+K43/222 -> 34751.28387
D52: Data Inputs for Capital Recovery Factor & Sinking Fund Factor:
D53: Annual Interest Rate (EPA OAQPS Control Cost Manual) | E53: 7 | F53: %
D54: Project Life (EPA OAQPS Control Cost Manual) | E54: 20 | F54: years
D55: Catalyst Life | E55: 3 | F55: years
D56: Asset Utilization | E56: 100 | F56: %
B59: 1 | C59: For the water injection option, costs have been estimated to expand water treatment capacity. Consideration of source water (i.e. wells) would likely be an additional factor.
B60: 2 | C60: Source of SCR Capital Costs: ATCO Emissions Management. These were supply-only costs given in a range for the Frame 7s. The high point of the range provided ($3 – $5 million) was used, see discussion in separately submitted CBI package.
B61: 3 | C61: ATCO was aware that the preferred reagent was urea, however they did not specify any capital costs for reagent prep. Costs for reagent prep equipment and additional structures are discussed in a separately submitted CBI package.
B62: 4 | C62: Continuous emissions monitoring system is included in capital costs under Reagent Prep/Water Treatment/Structure.
B63: 5 | C63: Construction costs associated directly with SCR installation were conservatively estimated at double the capital cost. This seems reasonable given the current footprint of the turbine building. Additional structure costs were included under part (1)(a) This should be viewed as an engineering estimate only.
B64: 6 | C64: Construction costs associated directly with water injection installation was conservatively estimated at half the capital cost. This is based on the assumption that some water treatment system work in addition to SCR treated water needs will be required to add water injection. This should be viewed as an engineering estimate only.
B65: 7 | C65: Unit operator costs were excluded as these costs were not specified in vendor quotes and/or appropriate literature.
B66: 8 | C66: Annual direct cost for SCR power consumption were excluded as vendor quotes did not specify system power requirements. However the reagent solutions will require continual heating to keep them in in liquid form and a notable station load compared to the unit actual operation is expected.
B67: 9 | C67: Annual average run hours for EU 1 from 2009-2016 is 833 hours, and the peak in the last four years has been 600 hours.

Sheet 3-6 EU 2 SCR_WI TCI
B1: Table 3-6. GVEA North Pole Facility - Capital Costs for SCR and Water Injection on the
B2: Diesel-fired Simple Cycle Gas Turbine (EU ID 2)
J3: Shaded cells indicate user inputs.
B4: Total Capital Investment Determination - Water Injection + SCR | J4: Date: | K4: 2017-07-05
B5: Project: | D5: GVEA North Pole PM2.5 BACT Analysis - Frame 7E CT (EU ID 2) | J5: Prepared By: | K5: Lain P.
J6: Checked By: | K6: J. Rubino
B7: *Notes regarding pertinent cost information and cost exclusion reasoning is included on the separate footnote reference page. | J7: Rev:
B8: Capital Costs
B9: DIRECT COSTS | E9: QTY | F9: UNIT | G9: UNIT COST | H9: TOTAL MATERIALS COST | I9: TOTAL LABOR COST
B11: (1) | C11: Purchased equipment and material costs
C12: (a) | D12: Basic equipment
D13: Water Injection1 | E13: 1 | F13: EA | G13: 2000000 | H13: =E13*G13 -> 2000000
D14: SCR2,3 | E14: 1 | F14: EA | G14: 5000000 | H14: =E14*G14 -> 5000000
D15: Reagent Prep/Water Treatment/Structure | E15: 1 | F15: EA | G15: =9338000/2 -> 4669000 | H15: =E15*G15 -> 4669000 | J15: TOTAL = | K15: =SUM(H13:H15) -> 11669000
C17: (b) | D17: Instrumentation
D18: Total Instrumentation4 | F18: EA | H18: =E18*G18 -> 0
J19: TOTAL = | K19: =SUM(H18:H18) -> 0
C20: (c) | D20: Freight
D21: Injection System Freight | F21: % MATL COST | I21: =G21*H13 -> 0
J22: TOTAL = | K22: =SUM(I21:I21) -> 0
C23: (d) | D23: Labor
D24: Labor - offsite fab | F24: MH | I24: =E24*G24 -> 0
D25: Labor - onsite | F25: MH | I25: =E25*G25 -> 0
C27: (e ) | D27: Startup Spares
D28: Startup Spare Parts for SCR | E28: 0.005 | F28: % | H28: =E28*G14 -> 25000
J29: TOTAL = | K29: =H28 -> 25000
C30: (f) | D30: Vendor representatives fees
D31: Fab Site Vendor Representatives fees (enter no. of days and daily rate) | E31: 10 | F31: Days | G31: 1800 | I31: =G31*E31 -> 18000
D32: Onsite Vendor Representatives fees (enter no. of days and daily rate) | E32: 8 | F32: Days | G32: 2500 | I32: =G32*E32 -> 20000
J33: TOTAL = | K33: =SUM(I31:I32) -> 38000
B34: Purchased Equipment and Material Cost (PEMC) | E34: All above costs included in vendor scope except SCR spares and SCR vendor rep. fees | J34: PEMC = | K34: =SUM(K13:K33) -> 11732000
B36: (2) | C36: Direct Installation Costs5,6
C37: (a) | D37: Concrete | F37: CY | H37: =E37*G37 -> 0 | K37: =H37+I37 -> 0
C38: (b) | D38: Piling | F38: TON | H38: =E38*G38 -> 0 | K38: =H38+I38 -> 0
C39: (c) | D39: Structural steel | F39: TON | H39: 0 | K39: 0
C40: (d) | D40: Electrical | F40: LOT | H40: 0 | K40: 0
C41: (e ) | D41: Painting | F41: SF | H41: 0 | K41: 0
C42: (f) | D42: Insulation | F42: LOT | H42: 0 | K42: 0
C43: (g) | D43: Abovegrade piping | F43: LF | H43: 0 | K43: 0
C44: (h) | D44: Functional Checkouts
D45: Functional Checkout - fab site, enter %: | F45: % offsite fab labor | I45: =G45*I24 -> 0 | K45: 0
D46: Funtional Checkout - onsite, enter % | F46: % onsite fab labor | I46: =G46*I25 -> 0 | K46: 0
D47: Contractor Commissioning, enter %: | F47: % of equipment total cost | I47: =G47*K15 -> 0 | K47: 0
B48: Direct Installation Costs (DIC) | J48: DIC = | K48: =(H13*0.5)+(H14*2) -> 11000000
B51: Total Direct Costs (TDC) | J51: TDC = (PEMC) + (DIC) = | K51: =K34+K48 -> 22732000
B54: INDIRECT COSTS
B55: (3) | C55: Engineering, Procurement & Construction Support Services | E55: 0.22 | F55: % TDC | I55: =E55*K51 -> 5001040
B56: (4) | C56: Performance tests | E56: 1 | F56: EA | G56: 10000 | I56: =E56*G56 -> 10000
B57: Total Indirect Costs (TIC) | J57: TIC = | K57: =SUM(I55:I56) -> 5011040
B60: MANAGEMENT AND CONTINGENCY COSTS
B61: (5) | C61: Unit Operator Costs7 | F61: % TDC | K61: Excluded in this estimate.1
B62: (6) | C62: Contingency | E62: 0.3 | F62: % PEMC | I62: =E62*K34 -> 3519600
B63: Total Management and Contingency Costs (TM&CC) | J63: TM & CC = | K63: =SUM(I61:I62) -> 3519600
B66: TOTAL CAPITAL INVESTMENT (TCI) | J66: TCI = (TDC)+(TIC)+(TM&CC) = | K66: =K51+K57+K63 -> 31262640
B69: 1 | C69: For the water injection option, costs have been estimated to expand water treatment capacity. Consideration of source water (i.e. wells) would likely be an additional factor.
B70: 2 | C70: Source of SCR Capital Costs: ATCO Emissions Management. These were supply-only costs given in a range for the Frame 7s. The high point of the range provided ($3 – $5 million) was used, see discussion in separately submitted CBI package.
B71: 3 | C71: ATCO was aware that the preferred reagent was urea, however they did not specify any capital costs for reagent prep. Costs for reagent prep equipment and additional structures are discussed in a separately submitted CBI package.
B72: 4 | C72: Continuous emissions monitoring system is included in capital costs under Reagent Prep/Water Treatment/Structure.
B73: 5 | C73: Construction costs associated directly with SCR installation were conservatively estimated at double the capital cost. This seems reasonable given the current footprint of the turbine building. Additional structure costs were included under part (1)(a) This should be viewed as an engineering estimate only.
B74: 6 | C74: Construction costs associated directly with water injection installation was conservatively estimated at half the capital cost. This is based on the assumption that some water treatment system work in addition to SCR treated water needs will be required to add water injection. This should be viewed as an engineering estimate only.
B75: 7 | C75: Unit operator costs were excluded as these costs were not specified in vendor quotes and/or appropriate literature.
B76: 8 | C76: Annual direct cost for SCR power consumption were excluded as vendor quotes did not specify system power requirements. However the reagent solutions will require continual heating to keep them in in liquid form and a notable station load compared to the unit actual operation is expected.

Sheet 3-7 EU 2 SCR_WI CE
B1: Table 3-7. GVEA North Pole Facility - Annualized Costs for SCR and Water Injection on the Diesel-fired Simple Cycle Gas Turbine (EU ID 2)
I3: Shaded cells indicate user inputs
B4: Cost Effectiveness Determination - Water Injection + SCR | J4: Date:
B5: Project: | D5: GVEA North Pole PM2.5 BACT Analysis - Frame 7E CT (EU ID 2) | J5: Prepared By:
J6: Checked By:
B7: *Notes regarding pertinent cost information and cost exclusion reasoning is included on the separate footnote reference page. | J7: Rev:
B8: Annualized Costs
B9: DIRECT ANNUAL COSTS | E9: QTY | F9: UNIT | G9: UNIT COST | H9: TOTAL MATERIALS COST | I9: TOTAL LABOR COST | K9: TOTAL
B10: (1) | C10: Operating Labor | E10: =E13*2 -> 730 | F10: MH | G10: 105 | I10: =E10*G10 -> 76650 | K10: =I10 -> 76650
B11: (2) | C11: Supervisory Labor | E11: =E13/2 -> 182.5 | F11: MH | G11: 125 | I11: =E11*G11 -> 22812.5 | K11: =I11 -> 22812.5
B12: (3) | C12: Maintenance Labor (water treatment) | E12: =E16*1.29 -> 35411.80992 | F12: 1000 GALS | G12: =0.7*(1.05^25) -> 2.370448459 | I12: =E12*G12 -> 83941.87024 | K12: 83941.87024
B13: (4) | C13: Maintenance Labor (SCR system) | E13: =365*E56/100 -> 365 | F13: MH | G13: 105 | I13: =E13*G13 -> 38325 | K13: =I13 -> 38325
B14: (5) | C14: Maintenance Materials | F14: LOT | H14: =E14*G14 -> 0 | I14: Included in water treatment below | K14: =H14 -> 0
B15: (6) | C15: Utilities
C16: a) | D16: Water Use: | E16: =E18*0.81*7.21/(8.34*1000) -> 27451.01544 | F16: 1000 GALS | G16: =0.384*(1.05^25) -> 1.300360297 | H16: =E16*G16 -> 35696.2106 | K16: =H16 -> 35696.2106
C17: b) | D17: Water Pump Energy: | E17: =64.8*0.161*7992 -> 83378.9376 | F17: kWh | G17: 0.18 | H17: =E17*G17 -> 15008.20877 | K17: =H17 -> 15008.20877
C18: c) | D18: CT Fuel Use: | E18: =672/137*1000*7992 -> 39201635.04 | F18: GALS
C19: d) | D19: Fuel Penalty: | E19: =E18*0.035*0.81 -> 1111366.353 | F19: GALS | G19: 1.7 | H19: =E19*G19 -> 1889322.801 | K19: =H19 -> 1889322.801
C20: e) | D20: Water Treatment Capacity: | E20: =E16*1.3*1.29 -> 46035.35289 | F20: 1000 GALS | G20: =1.97*(1.05^25) -> 6.671119234 | H20: =E20*G20 -> 307107.3281 | K20: =H20 -> 307107.3281
C21: f) | D21: Water Waste Disposal: | E21: =E20*0.29 -> 13350.25234 | F21: 1000 GALS | G21: =3.82*(1.05^25) -> 12.93587587 | H21: =E21*G21 -> 172697.2072 | K21: =H21 -> 172697.2072
C22: g) | D22: Urea/DEF: | E22: =(2126.8-1819.6)*(60)*2*2.2/2000 -> 40.5504 | F22: TON | G22: 356 | H22: =E22*G22 -> 14435.9424 | K22: =H22 -> 14435.9424
C23: h) | D23: SCR Energy Use8: | F23: kWh | G23: 0.18 | H23: Excluded in this estimate. | K23: =E23*G23 -> 0
B25: (7) | C25: Catalyst Replacement Costs (every 3 years)
C26: (a) | D26: Replacement of SCR Catalyst: % of total equipment cost | E26: 0.3 | F26: % total equip | G26: ='3-6 EU 2 SCR_WI TCI'!H14 -> 5000000 | H26: =G26*E26 -> 1500000 | K26: =H26*E31 -> 466577.4985
C27: (b) | D27: Replacement labor for SCR Catalyst | E27: 180 | F27: MH | G27: 105 | I27: =E27*G27 -> 18900 | K27: =I27*E31 -> 5878.876481
C28: (c) | D28: Transport cost direct to site (SCR catalyst) | E28: 0.13 | F28: % replacement | I28: =E28*(H26) -> 195000 | K28: =I28*E31 -> 60655.07481
C29: (d) | D29: Transport cost for spent SCR catalyst | E29: 0.13 | F29: % replacement | I29: =E29*H26 -> 195000 | K29: =I29*E31 -> 60655.07481
B31: Sinking Fund Factor [see inputs below]: | E31: =($E$53/100)/(POWER(1+($E$53/100),($E$55)/($E$56/100))-1) -> 0.3110516657
B33: Total Direct Annual Costs (TDAC) | J33: TDAC = | K33: =SUM(K10:K32) -> 3249763.592
B35: INDIRECT ANNUAL COSTS
B36: (8) | C36: Overhead | E36: 0.3 | F36: % WT Labor | I36: =E36*I12 -> 25182.56107 | K36: =I36 -> 25182.56107
B37: (9) | C37: Administrative Charges, Property Taxes, Insurance | E37: 0.04 | F37: % total capital | I37: =E37*'3-6 EU 2 SCR_WI TCI'!K66 -> 1250505.6 | K37: =I37 -> 1250505.6
C38: Capital Recovery Factor [see inputs below] | E38: =($E$53/100*POWER((1+($E$53/100)),$E$54))/((POWER(((1+$E$53/100)),$E$54))-1) -> 0.09439292574
B39: (10) | C39: Capital Recovery | J39: CRF * TCI = | K39: =E38*'3-6 EU 2 SCR_WI TCI'!K66 -> 2950972.056
B41: Total Indirect Annual Costs (TIAC) | J41: TIAC = | K41: =SUM(K34:K39) -> 4226660.217
B43: TOTAL ANNUALIZED COSTS (TAC) | J43: TAC = (TDAC) + (TIAC) = | K43: =K33+K41 -> 7476423.81
B45: Cost Effectiveness Summary
B47: TOTAL TONS NOx AVOIDED PER YEAR | J47: = | K47: ='3-3 Ranking-NOx'!F11 -> 2126.7
B49: COST EFFECTIVENESS ($ PER TON AVOIDED BASED ON PTE) | J49: (TAC)/(TPY) = | K49: =K43/K47 -> 3515.504683
B50: COST EFFECTIVENESS ($ PER TON AVOIDED BASED ON ACTUALS, AVOIDING 658 TONS PER YEAR)9 | J50: (TAC)/(TPY) = | K50: =+K43/658 -> 11362.34622
D52: Data Inputs for Capital Recovery Factor & Sinking Fund Factor:
D53: Annual Interest Rate (EPA OAQPS Control Cost Manual) | E53: 7 | F53: %
D54: Project Life (EPA OAQPS Control Cost Manual) | E54: 20 | F54: years
D55: Catalyst Life | E55: 3 | F55: years
D56: Asset Utilization | E56: 100 | F56: %
B59: 1 | C59: For the water injection option, costs have been estimated to expand water treatment capacity. Consideration of source water (i.e. wells) would likely be an additional factor.
B60: 2 | C60: Source of SCR Capital Costs: ATCO Emissions Management. These were supply-only costs given in a range for the Frame 7s. The high point of the range provided ($3 – $5 million) was used, see discussion in separately submitted CBI package.
B61: 3 | C61: ATCO was aware that the preferred reagent was urea, however they did not specify any capital costs for reagent prep. Costs for reagent prep equipment and additional structures are discussed in a separately submitted CBI package.
B62: 4 | C62: Continuous emissions monitoring system is included in capital costs under Reagent Prep/Water Treatment/Structure.
B63: 5 | C63: Construction costs associated directly with SCR installation were conservatively estimated at double the capital cost. This seems reasonable given the current footprint of the turbine building. Additional structure costs were included under part (1)(a) This should be viewed as an engineering estimate only.
B64: 6 | C64: Construction costs associated directly with water injection installation was conservatively estimated at half the capital cost. This is based on the assumption that some water treatment system work in addition to SCR treated water needs will be required to add water injection. This should be viewed as an engineering estimate only.
B65: 7 | C65: Unit operator costs were excluded as these costs were not specified in vendor quotes and/or appropriate literature.
B66: 8 | C66: Annual direct cost for SCR power consumption were excluded as vendor quotes did not specify system power requirements. However the reagent solutions will require continual heating to keep them in in liquid form and a notable station load compared to the unit actual operation is expected.
B67: 9 | C67: Annual average run hours for EU 2 from 2009-2016 is 2472 hours, and the peak in the last four years has been 2873 hours.

Sheet 3-8 EU1 SCR TCI
B1: Table 3-8. GVEA North Pole Facility - Capital Costs for SCR on the Diesel-fired Simple Cycle Gas Turbine (EU ID 1)
J3: Shaded cells indicate user inputs.
B4: Total Capital Investment Determination - SCR | J4: Date:
B5: Project: | D5: GVEA North Pole PM2.5 BACT Analysis - Frame 7E CTs (EU ID 1) | J5: Prepared By:
J6: Checked By:
B7: *Notes regarding pertinent cost information and cost exclusion reasoning is included on the separate footnote reference page. | J7: Rev:
B8: Capital Costs
B9: DIRECT COSTS | E9: QTY | F9: UNIT | G9: UNIT COST | H9: TOTAL MATERIALS COST | I9: TOTAL LABOR COST
B11: (1) | C11: Purchased equipment and material costs
C12: (a) | D12: Basic equipment
D13: SCR1,2 | E13: 1 | F13: EA | G13: 5000000 | H13: =E13*G13 -> 5000000
D14: Reagent Prep/Water Treatment/Structure | E14: 1 | F14: EA | G14: 4669000 | H14: =E14*G14 -> 4669000 | J14: TOTAL = | K14: =SUM(H13:H14) -> 9669000
C16: (b) | D16: Instrumentation
D17: Total Instrumentation3 | F17: EA | H17: =E17*G17 -> 0
J18: TOTAL = | K18: =SUM(H17:H17) -> 0
C19: (c) | D19: Freight
F20: % MATL COST | I20: 0
J21: TOTAL = | K21: =SUM(I20:I20) -> 0
C22: (d) | D22: Labor
D23: Labor - offsite fab | F23: MH | I23: =E23*G23 -> 0
D24: Labor - onsite | F24: MH | I24: =E24*G24 -> 0
C26: (e ) | D26: Startup Spares
D27: Startup Spare Parts for SCR | E27: 0.005 | F27: % | H27: =E27*G13 -> 25000
J28: TOTAL = | K28: =H27 -> 25000
C29: (f) | D29: Vendor representatives fees
D30: Fab Site Vendor Representatives fees (enter no. of days and daily rate) | E30: 10 | F30: Days | G30: 1800 | I30: =G30*E30 -> 18000
D31: Onsite Vendor Representatives fees (enter no. of days and daily rate) | E31: 8 | F31: Days | G31: 2500 | I31: =G31*E31 -> 20000
J32: TOTAL = | K32: =SUM(I30:I31) -> 38000
B33: Purchased Equipment and Material Cost (PEMC) | E33: All above costs included in vendor scope except SCR spares and SCR vendor rep. fees | J33: PEMC = | K33: =SUM(K14:K32) -> 9732000
B35: (2) | C35: Direct Installation Costs4
C36: (a) | D36: Concrete | F36: CY | H36: =E36*G36 -> 0 | K36: =H36+I36 -> 0
C37: (b) | D37: Piling | F37: TON | H37: =E37*G37 -> 0 | K37: =H37+I37 -> 0
C38: (c) | D38: Structural steel | F38: TON | H38: 0 | K38: 0
C39: (d) | D39: Electrical | F39: LOT | H39: 0 | K39: 0
C40: (e ) | D40: Painting | F40: SF | H40: 0 | K40: 0
C41: (f) | D41: Insulation | F41: LOT | H41: 0 | K41: 0
C42: (g) | D42: Abovegrade piping | F42: LF | H42: 0 | K42: 0
C43: (h) | D43: Functional Checkouts
D44: Functional Checkout - fab site, enter %: | F44: % offsite fab labor | I44: =G44*I23 -> 0 | K44: 0
D45: Funtional Checkout - onsite, enter % | F45: % onsite fab labor | I45: =G45*I24 -> 0 | K45: 0
D46: Contractor Commissioning, enter %: | F46: % of equipment total cost | I46: =G46*K14 -> 0 | K46: 0
B47: Direct Installation Costs (DIC) | J47: DIC = | K47: =(H13*2) -> 10000000
B50: Total Direct Costs (TDC) | J50: TDC = (PEMC) + (DIC) = | K50: =K33+K47 -> 19732000
B52: INDIRECT COSTS
B53: (3) | C53: Engineering, Procurement & Construction Support Services | E53: 0.18 | F53: % TDC | I53: =E53*K50 -> 3551760
B54: (4) | C54: Performance tests | E54: 1 | F54: EA | G54: 10000 | I54: =E54*G54 -> 10000
B55: Total Indirect Costs (TIC) | J55: TIC = | K55: =SUM(I53:I54) -> 3561760
B58: MANAGEMENT AND CONTINGENCY COSTS
B59: (5) | C59: Unit Operator Costs5 | F59: % TDC | K59: Excluded in this estimate.
B60: (6) | C60: Contingency | E60: 0.3 | F60: % PEMC | I60: =E60*K33 -> 2919600
B61: Total Management and Contingency Costs (TM&CC) | J61: TM & CC = | K61: =SUM(I59:I60) -> 2919600
B64: TOTAL CAPITAL INVESTMENT (TCI) | J64: TCI = (TDC)+(TIC)+(TM&CC) = | K64: =K50+K55+K61 -> 26213360
B66: 1 | C66: Source of SCR Capital Costs: ATCO Emissions Management. These were supply-only costs given in a range for the Frame 7s. The high point of the range provided ($3 – $5 million) was used, see discussion in separately submitted CBI package.
B67: 2 | C67: ATCO was aware that the preferred reagent was urea, however they did not specify any capital costs for reagent prep. Costs for reagent prep equipment and additional structures are discussed in a separately submitted CBI package.
B68: 3 | C68: Continuous emissions monitoring system is included in capital costs under Reagent Prep/Water Treatment/Structure.
B69: 4 | C69: Construction costs associated directly with SCR installation were conservatively estimated at double the capital cost. This seems reasonable given the current footprint of the turbine building. Additional structure costs were included under part (1)(a) This should be viewed as an engineering estimate only.
B70: 5 | C70: Unit operator costs were excluded as these costs were not specified in vendor quotes and/or appropriate literature.
B71: 6 | C71: Annual direct cost for SCR power consumption were excluded as vendor quotes did not specify system power requirements. However the reagent solutions will require continual heating to keep them in in liquid form and a notable station load compared to the unit actual operation is expected.
B72: 7 | C72: Indirect annual costs for operational overhead were excluded as vendor quotes did not specify overhead costs.

Sheet 3-9 EU1 SCR CE
B1: Table 3-9. GVEA North Pole Facility - Annualized Costs for SCR on the Diesel-fired Simple Cycle Gas Turbine (EU ID 1)
I3: Shaded cells indicate user inputs
B4: Cost Effectiveness Determination - SCR | J4: Date:
B5: Project: | D5: GVEA North Pole PM2.5 BACT Analysis - Frame 7E CT (EU ID 1) | J5: Prepared By:
J6: Checked By:
B7: *Notes regarding pertinent cost information and cost exclusion reasoning is included on the separate footnote reference page. | J7: Rev:
B8: Annualized Costs
B9: DIRECT ANNUAL COSTS | E9: QTY | F9: UNIT | G9: UNIT COST | H9: TOTAL MATERIALS COST | I9: TOTAL LABOR COST | K9: TOTAL
B10: (1) | C10: Operating Labor | E10: =E12*2 -> 730 | F10: MH | G10: 105 | I10: =E10*G10 -> 76650 | K10: =I10 -> 76650
B11: (2) | C11: Supervisory Labor | E11: =E12/2 -> 182.5 | F11: MH | G11: 125 | I11: =E11*G11 -> 22812.5 | K11: =I11 -> 22812.5
B12: (3) | C12: Maintenance Labor (SCR system) | E12: =365*E49/100 -> 365 | F12: MH | G12: 105 | I12: =E12*G12 -> 38325 | K12: =I12 -> 38325
B13: (4) | C13: Maintenance Materials | F13: LOT | H13: =E13*G13 -> 0 | I13: Excluded in this estimate.1 | K13: =H13 -> 0
B14: (5) | C14: Utilities
C15: a) | D15: Urea/DEF: | E15: =(K39)*(60)*2*2.2/2000 -> 179.52 | F15: TON | G15: 356 | H15: =E15*G15 -> 63909.12 | K15: =H15 -> 63909.12
C16: b) | D16: SCR Energy Use6: | F16: kWh | G16: 0.18 | H16: Excluded in this estimate. | K16: =G16*E16 -> 0
B17: (6) | C17: Catalyst Replacement Costs (every 3 years)
C18: (a) | D18: Replacement of SCR Catalyst: % of total equipment cost | E18: 0.3 | F18: % total equip | G18: ='3-8 EU1 SCR TCI'!H13 -> 5000000 | H18: =G18*E18 -> 1500000 | K18: =H18*E23 -> 466577.4985
C19: (b) | D19: Replacement labor for SCR Catalyst | E19: 180 | F19: MH | G19: 105 | I19: =E19*G19 -> 18900 | K19: =I19*E23 -> 5878.876481
C20: (c) | D20: Transport cost direct to site (SCR catalyst) | E20: 0.13 | F20: % replacement | I20: =E20*H18 -> 195000 | K20: =I20*E23 -> 60655.07481
C21: (d) | D21: Transport cost for spent SCR catalyst | E21: 0.13 | F21: % replacement | I21: =E21*H18 -> 195000 | K21: =I21*E23 -> 60655.07481
B23: Sinking Fund Factor [see inputs below]: | E23: =($E$46/100)/(POWER(1+($E$46/100),($E$48)/($E$49/100))-1) -> 0.3110516657
B25: Total Direct Annual Costs (TDAC) | J25: TDAC = | K25: =SUM(K10:K21) -> 795463.1446
B27: INDIRECT ANNUAL COSTS
B28: (7) | C28: Overhead7 | H28: Excluded in this estimate. | I28: 0 | K28: =I28 -> 0
B29: (8) | C29: Administrative Charges, Property Taxes, Insurance | E29: 0.04 | F29: % total capital | I29: =E29*'3-8 EU1 SCR TCI'!K64 -> 1048534.4 | K29: =I29 -> 1048534.4
C30: Capital Recovery Factor [see inputs below] | E30: =($E$46/100*POWER((1+($E$46/100)),$E$47))/((POWER(((1+$E$46/100)),$E$47))-1) -> 0.09439292574
B31: (9) | C31: Capital Recovery | J31: CRF * TCI = | K31: =E30*'3-8 EU1 SCR TCI'!K64 -> 2474355.744
B33: Total Indirect Annual Costs (TIAC) | J33: TIAC = | K33: =SUM(K28:K31) -> 3522890.144
B35: TOTAL ANNUALIZED COSTS (TAC) | J35: TAC = (TDAC) + (TIAC) = | K35: =K25+K33 -> 4318353.289
B37: Cost Effectiveness Summary
B39: TOTAL TONS NOx AVOIDED PER YEAR | J39: = | K39: ='3-3 Ranking-NOx'!F7 -> 1360
B41: COST EFFECTIVENESS ($ PER TON AVOIDED BASED ON PTE) | J41: (TAC)/(TPY) = | K41: =K35/K39 -> 3175.259771
B42: COST EFFECTIVENESS ($ PER TON AVOIDED BASED ON ACTUALS, AVOIDING 209 TONS PER YEAR)8 | J42: (TAC)/(TPY) = | K42: =+K35/209 -> 20661.97746
D45: Data Inputs for Capital Recovery Factor & Sinking Fund Factor:
D46: Annual Interest Rate (EPA OAQPS Control Cost Manual) | E46: 7 | F46: %
D47: Project Life (EPA OAQPS Control Cost Manual) | E47: 20 | F47: years
D48: Catalyst Life | E48: 3 | F48: years
D49: Asset Utilization | E49: 100 | F49: %
B52: 1 | C52: Source of SCR Capital Costs: ATCO Emissions Management. These were supply-only costs given in a range for the Frame 7s. The high point of the range provided ($3 – $5 million) was used, see discussion in separately submitted CBI package.
B53: 2 | C53: ATCO was aware that the preferred reagent was urea, however they did not specify any capital costs for reagent prep. Costs for reagent prep equipment and additional structures are discussed in a separately submitted CBI package.
B54: 3 | C54: Continuous emissions monitoring system is included in capital costs under Reagent Prep/Water Treatment/Structure.
B55: 4 | C55: Construction costs associated directly with SCR installation were conservatively estimated at double the capital cost. This seems reasonable given the current footprint of the turbine building. Additional structure costs were included under part (1)(a) This should be viewed as an engineering estimate only.
B56: 5 | C56: Unit operator costs were excluded as these costs were not specified in vendor quotes and/or appropriate literature.
B57: 6 | C57: Annual direct cost for SCR power consumption were excluded as vendor quotes did not specify system power requirements. However the reagent solutions will require continual heating to keep them in in liquid form and a notable station load compared to the unit actual operation is expected.
B58: 7 | C58: Indirect annual costs for operational overhead were excluded as vendor quotes did not specify overhead costs.
B59: 8 | C59: Annual average run hours for EU 1 from 2009-2016 is 833 hours, and the peak in the last four years has been 600 hours.

Sheet 3-10 EU 2 SCR TCI
B1: Table 3-10. GVEA North Pole Facility - Capital Costs for SCR on the Diesel-fired Simple Cycle Gas Turbine (EU ID 2)
J3: Shaded cells indicate user inputs.
B4: Total Capital Investment Determination - SCR | J4: Date:
B5: Project: | D5: GVEA North Pole PM2.5 BACT Analysis - Frame 7E CT (EU ID 2) | J5: Prepared By:
J6: Checked By:
B7: *Notes regarding pertinent cost information and cost exclusion reasoning is included on the separate footnote reference page. | J7: Rev:
B8: Capital Costs
B9: DIRECT COSTS | E9: QTY | F9: UNIT | G9: UNIT COST | H9: TOTAL MATERIALS COST | I9: TOTAL LABOR COST
B11: (1) | C11: Purchased equipment and material costs
C12: (a) | D12: Basic equipment
D13: SCR1,2 | E13: 1 | F13: EA | G13: 5000000 | H13: =E13*G13 -> 5000000
D14: Reagent Prep/Water Treatment/Structure | E14: 1 | F14: EA | G14: 4669000 | H14: =E14*G14 -> 4669000 | J14: TOTAL = | K14: =SUM(H13:H14) -> 9669000
C16: (b) | D16: Instrumentation
D17: Total Instrumentation3 | F17: EA | H17: =E17*G17 -> 0
J18: TOTAL = | K18: =SUM(H17:H17) -> 0
C19: (c) | D19: Freight
F20: % MATL COST | I20: 0
J21: TOTAL = | K21: =SUM(I20:I20) -> 0
C22: (d) | D22: Labor
D23: Labor - offsite fab | F23: MH | I23: =E23*G23 -> 0
D24: Labor - onsite | F24: MH | I24: =E24*G24 -> 0
C25: (e ) | D25: Startup Spares
D26: Startup Spare Parts for SCR | E26: 0.005 | F26: % | H26: =E26*G13 -> 25000
J27: TOTAL = | K27: =H26 -> 25000
C28: (f) | D28: Vendor representatives fees
D29: Fab Site Vendor Representatives fees (enter no. of days and daily rate) | E29: 10 | F29: Days | G29: 1800 | I29: =G29*E29 -> 18000
D30: Onsite Vendor Representatives fees (enter no. of days and daily rate) | E30: 8 | F30: Days | G30: 2500 | I30: =G30*E30 -> 20000
J31: TOTAL = | K31: =SUM(I29:I30) -> 38000
B32: Purchased Equipment and Material Cost (PEMC) | E32: All above costs included in vendor scope except SCR spares and SCR vendor rep. fees | J32: PEMC = | K32: =SUM(K14:K31) -> 9732000
B34: (2) | C34: Direct Installation Costs4
C35: (a) | D35: Concrete | F35: CY | H35: =E35*G35 -> 0 | K35: =H35+I35 -> 0
C36: (b) | D36: Piling | F36: TON | H36: =E36*G36 -> 0 | K36: =H36+I36 -> 0
C37: (c) | D37: Structural steel | F37: TON | H37: 0 | K37: 0
C38: (d) | D38: Electrical | F38: LOT | H38: 0 | K38: 0
C39: (e ) | D39: Painting | F39: SF | H39: 0 | K39: 0
C40: (f) | D40: Insulation | F40: LOT | H40: 0 | K40: 0
C41: (g) | D41: Abovegrade piping | F41: LF | H41: 0 | K41: 0
C42: (h) | D42: Functional Checkouts
D43: Functional Checkout - fab site, enter %: | F43: % offsite fab labor | I43: =G43*I23 -> 0 | K43: 0
D44: Funtional Checkout - onsite, enter % | F44: % onsite fab labor | I44: =G44*I24 -> 0 | K44: 0
D45: Contractor Commissioning, enter %: | F45: % of equipment total cost | I45: =G45*K14 -> 0 | K45: 0
B46: Direct Installation Costs (DIC) | J46: DIC = | K46: =(H13*2) -> 10000000
B49: Total Direct Costs (TDC) | J49: TDC = (PEMC) + (DIC) = | K49: =K32+K46 -> 19732000
B52: INDIRECT COSTS
B53: (3) | C53: Engineering, Procurement & Construction Support Services | E53: 0.18 | F53: % TDC | I53: =E53*K49 -> 3551760
B54: (4) | C54: Performance tests | E54: 1 | F54: EA | G54: 10000 | I54: =E54*G54 -> 10000
B55: Total Indirect Costs (TIC) | J55: TIC = | K55: =SUM(I53:I54) -> 3561760
B58: MANAGEMENT AND CONTINGENCY COSTS
B59: (5) | C59: Unit Operator Costs5 | F59: % TDC | K59: Excluded in this estimate.
B60: (6) | C60: Contingency | E60: 0.3 | F60: % PEMC | I60: =E60*K32 -> 2919600
B61: Total Management and Contingency Costs (TM&CC) | J61: TM & CC = | K61: =SUM(I59:I60) -> 2919600
B64: TOTAL CAPITAL INVESTMENT (TCI) | J64: TCI = (TDC)+(TIC)+(TM&CC) = | K64: =K49+K55+K61 -> 26213360
B66: 1 | C66: Source of SCR Capital Costs: ATCO Emissions Management. These were supply-only costs given in a range for the Frame 7s. The high point of the range provided ($3 – $5 million) was used, see discussion in separately submitted CBI package.
B67: 2 | C67: ATCO was aware that the preferred reagent was urea, however they did not specify any capital costs for reagent prep. Costs for reagent prep equipment and additional structures are discussed in a separately submitted CBI package.
B68: 3 | C68: Continuous emissions monitoring system is included in capital costs under Reagent Prep/Water Treatment/Structure.
B69: 4 | C69: Construction costs associated directly with SCR installation were conservatively estimated at double the capital cost. This seems reasonable given the current footprint of the turbine building. Additional structure costs were included under part (1)(a) This should be viewed as an engineering estimate only.
B70: 5 | C70: Unit operator costs were excluded as these costs were not specified in vendor quotes and/or appropriate literature.
B71: 6 | C71: Annual direct cost for SCR power consumption were excluded as vendor quotes did not specify system power requirements. However the reagent solutions will require continual heating to keep them in in liquid form and a notable station load compared to the unit actual operation is expected.
B72: 7 | C72: Indirect annual costs for operational overhead were excluded as vendor quotes did not specify overhead costs.

Sheet 3-11 EU2 SCR CE
B1: Table 3-11. GVEA North Pole Facility - Annualized Costs for SCR on the Diesel-fired Simple Cycle Gas Turbine (EU ID 2)
I3: Shaded cells indicate user inputs
B4: Cost Effectiveness Determination - SCR | J4: Date:
B5: Project: | D5: GVEA North Pole PM2.5 BACT Analysis - Frame 7E CT (EU ID 2) | J5: Prepared By:
J6: Checked By:
B7: *Notes regarding pertinent cost information and cost exclusion reasoning is included on the separate footnote reference page. | J7: Rev:
B8: Annualized Costs
B9: DIRECT ANNUAL COSTS | E9: QTY | F9: UNIT | G9: UNIT COST | H9: TOTAL MATERIALS COST | I9: TOTAL LABOR COST | K9: TOTAL
B10: (1) | C10: Operating Labor | E10: =E12*2 -> 730 | F10: MH | G10: 105 | I10: =E10*G10 -> 76650 | K10: =I10 -> 76650
B11: (2) | C11: Supervisory Labor | E11: =E12/2 -> 182.5 | F11: MH | G11: 125 | I11: =E11*G11 -> 22812.5 | K11: =I11 -> 22812.5
B12: (3) | C12: Maintenance Labor (SCR system) | E12: =365*E48/100 -> 365 | F12: MH | G12: 105 | I12: =E12*G12 -> 38325 | K12: =I12 -> 38325
B13: (4) | C13: Maintenance Materials | F13: LOT | H13: =E13*G13 -> 0 | I13: Excluded in this estimate.1 | K13: =H13 -> 0
B14: (5) | C14: Utilities
C15: a) | D15: Urea/DEF: | E15: =(K39)*(60)*2*2.2/2000 -> 265.1286 | F15: TON | G15: 356 | H15: =E15*G15 -> 94385.7816 | K15: =H15 -> 94385.7816
C16: b) | D16: SCR Energy Use6: | F16: kWh | G16: 0.18 | H16: Excluded in this estimate. | K16: =G16*E16 -> 0
B17: (6) | C17: Catalyst Replacement Costs (every 3 years)
C18: (a) | D18: Replacement of SCR Catalyst: % of total equipment cost | E18: 0.3 | F18: % total equip | G18: ='3-10 EU 2 SCR TCI'!H13 -> 5000000 | H18: =G18*E18 -> 1500000 | K18: =H18*E23 -> 466577.4985
C19: (b) | D19: Replacement labor for SCR Catalyst | E19: 180 | F19: MH | G19: 105 | I19: =E19*G19 -> 18900 | K19: =I19*E23 -> 5878.876481
C20: (c) | D20: Transport cost direct to site (SCR catalyst) | E20: 0.13 | F20: % replacement | I20: =E20*(H18) -> 195000 | K20: =I20*E23 -> 60655.07481
C21: (d) | D21: Transport cost for spent SCR catalyst | E21: 0.13 | F21: % replacement | I21: =E21*H18 -> 195000 | K21: =I21*E23 -> 60655.07481
B23: Sinking Fund Factor [see inputs below]: | E23: =($E$45/100)/(POWER(1+($E$45/100),($E$47)/($E$48/100))-1) -> 0.3110516657
B25: Total Direct Annual Costs (TDAC) | J25: TDAC = | K25: =SUM(K10:K24) -> 825939.8062
B27: INDIRECT ANNUAL COSTS
B28: (7) | C28: Overhead7 | E28: 0 | G28: Excluded in this estimate. | I28: 0 | K28: =I28 -> 0
B29: (8) | C29: Administrative Charges, Property Taxes, Insurance | E29: 0.04 | F29: % total capital | I29: =E29*'3-10 EU 2 SCR TCI'!K64 -> 1048534.4 | K29: =I29 -> 1048534.4
C30: Capital Recovery Factor [see inputs below] | E30: =($E$45/100*POWER((1+($E$45/100)),$E$46))/((POWER(((1+$E$45/100)),$E$46))-1) -> 0.09439292574
B31: (9) | C31: Capital Recovery | J31: CRF * TCI = | K31: =E30*'3-10 EU 2 SCR TCI'!K64 -> 2474355.744
B33: Total Indirect Annual Costs (TIAC) | J33: TIAC = | K33: =SUM(K26:K31) -> 3522890.144
B35: TOTAL ANNUALIZED COSTS (TAC) | J35: TAC = (TDAC) + (TIAC) = | K35: =K25+K33 -> 4348829.95
B37: Cost Effectiveness Summary
B39: TOTAL TONS NOx AVOIDED PER YEAR | J39: = | K39: ='3-3 Ranking-NOx'!F12 -> 2008.55
B41: COST EFFECTIVENESS ($ PER TON AVOIDED BASED ON PTE) | J41: (TAC)/(TPY) = | K41: =K35/K39 -> 2165.158921
B42: COST EFFECTIVENESS ($ PER TON AVOIDED BASED ON ACTUALS, AVOIDING 621 TONS PER YEAR)8 | J42: (TAC)/(TPY) = | K42: =+K35/621 -> 7002.94678
D44: Data Inputs for Capital Recovery Factor & Sinking Fund Factor:
D45: Annual Interest Rate (EPA OAQPS Control Cost Manual) | E45: 7 | F45: %
D46: Project Life (EPA OAQPS Control Cost Manual) | E46: 20 | F46: years
D47: Catalyst Life | E47: 3 | F47: years
D48: Asset Utilization | E48: 100 | F48: %
B50: 1 | C50: Source of SCR Capital Costs: ATCO Emissions Management. These were supply-only costs given in a range for the Frame 7s. The high point of the range provided ($3 – $5 million) was used, see discussion in separately submitted CBI package.
B51: 2 | C51: ATCO was aware that the preferred reagent was urea, however they did not specify any capital costs for reagent prep. Costs for reagent prep equipment and additional structures are discussed in a separately submitted CBI package.
B52: 3 | C52: Continuous emissions monitoring system is included in capital costs under Reagent Prep/Water Treatment/Structure.
B53: 4 | C53: Construction costs associated directly with SCR installation were conservatively estimated at double the capital cost. This seems reasonable given the current footprint of the turbine building. Additional structure costs were included under part (1)(a) This should be viewed as an engineering estimate only.
B54: 5 | C54: Unit operator costs were excluded as these costs were not specified in vendor quotes and/or appropriate literature.
B55: 6 | C55: Annual direct cost for SCR power consumption were excluded as vendor quotes did not specify system power requirements. However the reagent solutions will require continual heating to keep them in in liquid form and a notable station load compared to the unit actual operation is expected.
B56: 7 | C56: Indirect annual costs for operational overhead were excluded as vendor quotes did not specify overhead costs.
B57: 8 | C57: Annual average run hours for EU 2 from 2009-2016 is 2472 hours, and the peak in the last four years has been 2873 hours.

Sheet 3-12 EU1 WI TCI
B1: Table 3-12. GVEA North Pole Facility - Capital Costs for Water Injection on the Diesel-fired Simple Cycle Gas Turbine (EU ID 1)
J3: Shaded cells indicate user inputs.
B4: Total Capital Investment Determination - Water Injection | J4: Date:
B5: Project: | D5: GVEA North Pole PM2.5 BACT Analysis - Frame 7E CT (EU ID 1) | J5: Prepared By:
J6: Checked By:
B7: *Notes regarding pertinent cost information and cost exclusion reasoning is included on the separate footnote reference page. | J7: Rev:
B8: Capital Costs
B9: DIRECT COSTS | E9: QTY | F9: UNIT | G9: UNIT COST | H9: TOTAL MATERIALS COST | I9: TOTAL LABOR COST
B11: (1) | C11: Purchased equipment and material costs
C12: (a) | D12: Basic equipment
D13: Water Injection1 | E13: 1 | F13: EA | G13: 2000000 | H13: =E13*G13 -> 2000000
F14: EA | H14: =E14*G14 -> 0 | J14: TOTAL = | K14: =SUM(H13:H14) -> 2000000
C15: (b) | D15: Instrumentation
D16: Total Instrumentation2 | F16: EA | H16: =E16*G16 -> 0
J17: TOTAL = | K17: =SUM(H16:H16) -> 0
C18: (c) | D18: Freight
D19: Injection System Freight | F19: % MATL COST | I19: =G19*H13 -> 0
J20: TOTAL = | K20: =SUM(I19:I19) -> 0
C21: (d) | D21: Labor
D22: Labor - offsite fab | F22: MH | I22: =E22*G22 -> 0
D23: Labor - onsite | F23: MH | I23: =E23*G23 -> 0
C24: (e ) | D24: Startup Spares
D25: Startup Spare Parts for SCR | F25: % | H25: =E25*G14 -> 0
J26: TOTAL = | K26: =H25 -> 0
C27: (f) | D27: Vendor representatives fees
D28: Fab Site Vendor Representatives fees (enter no. of days and daily rate) | F28: Days | I28: =G28*E28 -> 0
D29: Onsite Vendor Representatives fees (enter no. of days and daily rate) | F29: Days | I29: =G29*E29 -> 0
J30: TOTAL = | K30: =SUM(I28:I29) -> 0
B31: Purchased Equipment and Material Cost (PEMC) | E31: All above costs included in vendor (GE) scope | J31: PEMC = | K31: =SUM(K13:K30) -> 2000000
B33: (2) | C33: Direct Installation Costs3
C34: (a) | D34: Concrete | F34: CY | H34: =E34*G34 -> 0 | K34: =H34+I34 -> 0
C35: (b) | D35: Piling | F35: TON | H35: =E35*G35 -> 0 | K35: =H35+I35 -> 0
C36: (c) | D36: Structural steel | F36: TON | H36: 0 | K36: 0
C37: (d) | D37: Electrical | F37: LOT | H37: 0 | K37: 0
C38: (e ) | D38: Painting | F38: SF | H38: 0 | K38: 0
C39: (f) | D39: Insulation | F39: LOT | H39: 0 | K39: 0
C40: (g) | D40: Abovegrade piping | F40: LF | H40: 0 | K40: 0
C41: (h) | D41: Functional Checkouts
D42: Functional Checkout - fab site, enter %: | F42: % offsite fab labor | I42: =G42*I22 -> 0 | K42: 0
D43: Functional Checkout - onsite, enter % | F43: % onsite fab labor | I43: =G43*I23 -> 0 | K43: 0
D44: Contractor Commissioning, enter %: | F44: % of equipment total cost | I44: =G44*K14 -> 0 | K44: 0
B45: Direct Installation Costs (DIC) | J45: DIC = | K45: =K14/2 -> 1000000
B48: Total Direct Costs (TDC) | J48: TDC = (PEMC) + (DIC) = | K48: =K31+K45 -> 3000000
B51: INDIRECT COSTS
B52: (3) | C52: Engineering, Procurement & Construction Support Services | E52: 0.33 | F52: % TDC | I52: =E52*K48 -> 990000
B53: (4) | C53: Performance tests | E53: 1 | F53: EA | G53: 10000 | I53: =E53*G53 -> 10000
B54: Total Indirect Costs (TIC) | J54: TIC = | K54: =SUM(I52:I53) -> 1000000
B57: MANAGEMENT AND CONTINGENCY COSTS
B58: (5) | C58: Unit Operator Costs4 | F58: % TDC | K58: Excluded in this estimate.
B59: (6) | C59: Contingency | E59: 0.3 | F59: % PEMC | I59: =E59*K31 -> 600000
B60: Total Management and Contingency Costs (TM&CC) | J60: TM & CC = | K60: =SUM(I58:I59) -> 600000
B63: TOTAL CAPITAL INVESTMENT (TCI) | J63: TCI = (TDC)+(TIC)+(TM&CC) = | K63: =K48+K54+K60 -> 4600000
B66: 1 | C66: For the water injection option, costs have been estimated to expand water treatment capacity. Consideration of source water (i.e. wells) would likely be an additional factor.
B67: 2 | C67: Continuous emissions monitoring system upgrade is included in capital costs under Reagent Prep/Water Treatment/Structure.
B68: 3 | C68: Construction costs associated directly with water injection installation was conservatively estimated at half the capital cost. This estimate is low based on the assumption that a complete water treatment system will be required to add water injection. This should be viewed as an engineering estimate only.
B69: 4 | C69: Unit operator costs were excluded as these costs were not specified in vendor quotes and/or appropriate literature.
B70: 5 | C70: Operator and supervisory labor costs were excluded as these costs were not specified in vendor quotes and/or appropriate literature.

Sheet 3-13 EU1 WI CE
B1: Table 3-13. GVEA North Pole Facility - Annualized Costs for Water Injection on the Diesel-fired Simple Cycle Gas Turbine (EU ID 1)
I3: Shaded cells indicate user inputs
B4: Cost Effectiveness Determination - Water Injection | J4: Date: | K4: 2017-07-05
B5: Project: | D5: GVEA North Pole PM2.5 BACT Analysis - Frame 7E CT (EU ID 1) | J5: Prepared By: | K5: Lain P.
J6: Checked By: | K6: J. Rubino
B7: *Notes regarding pertinent cost information and cost exclusion reasoning is included on the separate footnote reference page. | J7: Rev:
B8: Annualized Costs
B9: DIRECT ANNUAL COSTS | E9: QTY | F9: UNIT | G9: UNIT COST | H9: TOTAL MATERIALS COST | I9: TOTAL LABOR COST | K9: TOTAL
B10: (1) | C10: Operating Labor5 | F10: MH | H10: Excluded in this estimate. | I10: =E10*G10 -> 0 | K10: =I10 -> 0
B11: (2) | C11: Supervisory Labor5 | F11: MH | H11: Excluded in this estimate. | I11: =E11*G11 -> 0 | K11: =I11 -> 0
B12: (3) | C12: Maintenance Labor (water treatment) | E12: =E15*1.29 -> 38814.74661 | F12: 1000 GALS | G12: =0.7*(1.05^25) -> 2.370448459 | I12: =E12*G12 -> 92008.35627 | K12: 92008.35627
B13: (4) | C13: Maintenance Materials | F13: LOT | H13: =E13*G13 -> 0 | I13: Included in water treatment below | K13: =H13 -> 0
B14: (5) | C14: Utilities
C15: a) | D15: Water Use: | E15: =E17*0.81*7.21/(8.34*1000) -> 30088.95086 | F15: 1000 GALS | G15: =0.384*(1.05^25) -> 1.300360297 | H15: =E15*G15 -> 39126.47708 | K15: =H15 -> 39126.47708
C16: b) | D16: Water Pump Energy: | E16: =64.8*0.161*8760 -> 91391.328 | F16: kWh | G16: 0.18 | H16: =E16*G16 -> 16450.43904 | K16: =H16 -> 16450.43904
C17: c) | D17: CT Fuel Use: | E17: =672/137*1000*8760 -> 42968759.12 | F17: GALS
C18: d) | D18: Fuel Penalty: | E18: =E17*0.035*0.81 -> 1218164.321 | F18: GALS | G18: 1.7 | H18: =E18*G18 -> 2070879.346 | K18: =H18 -> 2070879.346
C19: e) | D19: Water Treatment Capacity: | E19: =E15*1.3*1.29 -> 50459.17059 | F19: 1000 GALS | G19: =1.97*(1.05^25) -> 6.671119234 | H19: =E19*G19 -> 336619.1434 | K19: =H19 -> 336619.1434
C20: f) | D20: Water Waste Disposal: | E20: =E19*0.29 -> 14633.15947 | F20: 1000 GALS | G20: =3.82*(1.05^25) -> 12.93587587 | H20: =E20*G20 -> 189292.7346 | K20: =H20 -> 189292.7346
B22: Total Direct Annual Costs (TDAC) | J22: TDAC = | K22: =SUM(K10:K21) -> 2744376.496
B24: INDIRECT ANNUAL COSTS
B25: (6) | C25: Overhead | E25: 0.3 | F25: % WT Labor | I25: =E25*I12 -> 27602.50688 | K25: =I25 -> 27602.50688
B26: (7) | C26: Administrative Charges, Property Taxes, Insurance | E26: 0.04 | F26: % total capital | I26: =E26*'3-12 EU1 WI TCI'!K63 -> 184000 | K26: =I26 -> 184000
C27: Capital Recovery Factor [see inputs below] | E27: =($E$41/100*POWER((1+($E$41/100)),$E$42))/((POWER(((1+$E$41/100)),$E$42))-1) -> 0.09439292574
B28: (8) | C28: Capital Recovery | J28: CRF * TCI = | K28: =E27*'3-12 EU1 WI TCI'!K63 -> 434207.4584
B30: Total Indirect Annual Costs (TIAC) | J30: TIAC = | K30: =SUM(K23:K28) -> 645809.9653
B32: TOTAL ANNUALIZED COSTS (TAC) | J32: TAC = (TDAC) + (TIAC) = | K32: =K22+K30 -> 3390186.462
B34: Cost Effectiveness Summary
B36: TOTAL TONS NOx AVOIDED PER YEAR | J36: = | K36: ='3-3 Ranking-NOx'!F8 -> 1168
B38: COST EFFECTIVENESS ($ PER TON AVOIDED) | J38: (TAC)/(TPY) = | K38: =K32/K36 -> 2902.556902
D40: Data Inputs for Capital Recovery Factor & Sinking Fund Factor:
D41: Annual Interest Rate (EPA OAQPS Control Cost Manual) | E41: 7 | F41: %
D42: Project Life (EPA OAQPS Control Cost Manual) | E42: 20 | F42: years
D43: Catalyst Life | E43: N/A | F43: years
D44: Asset Utilization | E44: 100 | F44: %
B47: 1 | C47: For the water injection option, costs have been estimated to expand water treatment capacity. Consideration of source water (i.e. wells) would likely be an additional factor.
B48: 2 | C48: Continuous emissions monitoring system upgrade is included in capital costs under Reagent Prep/Water Treatment/Structure.
B49: 3 | C49: Construction costs associated directly with water injection installation was conservatively estimated at half the capital cost. This estimate is low based on the assumption that a complete water treatment system will be required to add water injection. This should be viewed as an engineering estimate only.
B50: 4 | C50: Unit operator costs were excluded as these costs were not specified in vendor quotes and/or appropriate literature.
B51: 5 | C51: Operator and supervisory labor costs were excluded as these costs were not specified in vendor quotes and/or appropriate literature.

Sheet 3-14 EU2 WI TCI
B1: Table 3-13. GVEA North Pole Facility - Annualized Costs for Water Injection on the Diesel-fired Simple Cycle Gas Turbine (EU ID 1)
J3: Shaded cells indicate user inputs.
B4: Total Capital Investment Determination - Water Injection | J4: Date:
B5: Project: | D5: GVEA North Pole PM2.5 BACT Analysis - Frame 7E CT (EU ID 2) | J5: Prepared By:
J6: Checked By:
B7: *Notes regarding pertinent cost information and cost exclusion reasoning is included on the separate footnote reference page. | J7: Rev:
B8: Capital Costs
B9: DIRECT COSTS | E9: QTY | F9: UNIT | G9: UNIT COST | H9: TOTAL MATERIALS COST | I9: TOTAL LABOR COST
B11: (1) | C11: Purchased equipment and material costs
C12: (a) | D12: Basic equipment
D13: Water Injection1 | E13: 1 | F13: EA | G13: 2000000 | H13: =E13*G13 -> 2000000
F14: EA | H14: =E14*G14 -> 0 | J14: TOTAL = | K14: =SUM(H13:H14) -> 2000000
C15: (b) | D15: Instrumentation
D16: Total Instrumentation2 | F16: EA | H16: =E16*G16 -> 0
J17: TOTAL = | K17: =SUM(H16:H16) -> 0
C18: (c) | D18: Freight
D19: Injection System Freight | F19: % MATL COST | I19: =G19*H13 -> 0
J20: TOTAL = | K20: =SUM(I19:I19) -> 0
C21: (d) | D21: Labor
D22: Labor - offsite fab | F22: MH | I22: =E22*G22 -> 0
D23: Labor - onsite | F23: MH | I23: =E23*G23 -> 0
C24: (e ) | D24: Startup Spares
D25: Startup Spare Parts for SCR | F25: % | H25: =E25*G14 -> 0
J26: TOTAL = | K26: =H25 -> 0
C27: (f) | D27: Vendor representatives fees
D28: Fab Site Vendor Representatives fees (enter no. of days and daily rate) | F28: Days | I28: =G28*E28 -> 0
D29: Onsite Vendor Representatives fees (enter no. of days and daily rate) | F29: Days | I29: =G29*E29 -> 0
J30: TOTAL = | K30: =SUM(I28:I29) -> 0
B31: Purchased Equipment and Material Cost (PEMC) | E31: All above costs included in vendor (GE) scope | J31: PEMC = | K31: =SUM(K13:K30) -> 2000000
B33: (2) | C33: Direct Installation Costs3
C34: (a) | D34: Concrete | F34: CY | H34: =E34*G34 -> 0 | K34: =H34+I34 -> 0
C35: (b) | D35: Piling | F35: TON | H35: =E35*G35 -> 0 | K35: =H35+I35 -> 0
C36: (c) | D36: Structural steel | F36: TON | H36: 0 | K36: 0
C37: (d) | D37: Electrical | F37: LOT | H37: 0 | K37: 0
C38: (e ) | D38: Painting | F38: SF | H38: 0 | K38: 0
C39: (f) | D39: Insulation | F39: LOT | H39: 0 | K39: 0
C40: (g) | D40: Abovegrade piping | F40: LF | H40: 0 | K40: 0
C41: (h) | D41: Functional Checkouts
D42: Functional Checkout - fab site, enter %: | F42: % offsite fab labor | I42: =G42*I22 -> 0 | K42: 0
D43: Funtional Checkout - onsite, enter % | F43: % onsite fab labor | I43: =G43*I23 -> 0 | K43: 0
D44: Contractor Commissioning, enter %: | F44: % of equipment total cost | I44: =G44*K14 -> 0 | K44: 0
B45: Direct Installation Costs (DIC) | J45: DIC = | K45: =K14/2 -> 1000000
B48: Total Direct Costs (TDC) | J48: TDC = (PEMC) + (DIC) = | K48: =K31+K45 -> 3000000
B51: INDIRECT COSTS
B52: (3) | C52: Engineering, Procurement & Construction Support Services | E52: 0.33 | F52: % TDC | I52: =E52*K48 -> 990000
B53: (4) | C53: Performance tests | E53: 1 | F53: EA | G53: 10000 | I53: =E53*G53 -> 10000
B54: Total Indirect Costs (TIC) | J54: TIC = | K54: =SUM(I52:I53) -> 1000000
B57: MANAGEMENT AND CONTINGENCY COSTS
B58: (5) | C58: Unit Operator Costs4 | F58: % TDC | I58: Excluded in this estimate
B59: (6) | C59: Contingency | E59: 0.3 | F59: % PEMC | I59: =E59*K31 -> 600000
B60: Total Management and Contingency Costs (TM&CC) | J60: TM & CC = | K60: =SUM(I58:I59) -> 600000
B63: TOTAL CAPITAL INVESTMENT (TCI) | J63: TCI = (TDC)+(TIC)+(TM&CC) = | K63: =K48+K54+K60 -> 4600000
B66: 1 | C66: For the water injection option, costs have been estimated to expand water treatment capacity. Consideration of source water (i.e. wells) would likely be an additional factor.
B67: 2 | C67: Continuous emissions monitoring system upgrade is included in capital costs under Reagent Prep/Water Treatment/Structure.
B68: 3 | C68: Construction costs associated directly with water injection installation was conservatively estimated at half the capital cost. This estimate is low based on the assumption that a complete water treatment system will be required to add water injection. This should be viewed as an engineering estimate only.
B69: 4 | C69: Unit operator costs were excluded as these costs were not specified in vendor quotes and/or appropriate literature.
B70: 5 | C70: Operator and supervisory labor costs were excluded as these costs were not specified in vendor quotes and/or appropriate literature.

Sheet 3-15 EU2 WI CE
B1: Table 3-15. GVEA North Pole Facility - Annualized Costs for Water Injection on the Diesel-fired Simple Cycle Gas Turbine (EU ID 2)
I3: Shaded cells indicate user inputs
B4: Cost Effectiveness Determination - Water Injection | J4: Date:
B5: Project: | D5: GVEA North Pole PM2.5 BACT Analysis - Frame 7E CT (EU ID 2) | J5: Prepared By:
J6: Checked By:
B7: *Notes regarding pertinent cost information and cost exclusion reasoning is included on the separate footnote reference page. | J7: Rev:
B8: Annualized Costs
B9: DIRECT ANNUAL COSTS | E9: QTY | F9: UNIT | G9: UNIT COST | H9: TOTAL MATERIALS COST | I9: TOTAL LABOR COST | K9: TOTAL
B10: (1) | C10: Operating Labor5 | F10: MH | H10: Excluded in this estimate | I10: =E10*G10 -> 0 | K10: =I10 -> 0
B11: (2) | C11: Supervisory Labor5 | F11: MH | H11: Excluded in this estimate | I11: =E11*G11 -> 0 | K11: =I11 -> 0
B12: (3) | C12: Maintenance Labor (water treatment) | E12: =E15*1.29 -> 35411.80992 | F12: 1000 GALS | G12: =0.7*(1.05^25) -> 2.370448459 | I12: =E12*G12 -> 83941.87024 | K12: 83941.87024
B13: (4) | C13: Maintenance Materials | F13: LOT | H13: =E13*G13 -> 0 | I13: Included in water treatment below | K13: =H13 -> 0
B14: (5) | C14: Utilities
C15: a) | D15: Water Use: | E15: =E17*0.81*7.21/(8.34*1000) -> 27451.01544 | F15: 1000 GALS | G15: =0.384*(1.05^25) -> 1.300360297 | H15: =E15*G15 -> 35696.2106 | K15: =H15 -> 35696.2106
C16: b) | D16: Water Pump Energy: | E16: =64.8*0.161*7992 -> 83378.9376 | F16: kWh | G16: 0.18 | H16: =E16*G16 -> 15008.20877 | K16: =H16 -> 15008.20877
C17: c) | D17: CT Fuel Use: | E17: =672/137*1000*7992 -> 39201635.04 | F17: GALS
C18: d) | D18: Fuel Penalty: | E18: =E17*0.035*0.81 -> 1111366.353 | F18: GALS | G18: 1.7 | H18: =E18*G18 -> 1889322.801 | K18: =H18 -> 1889322.801
C19: e) | D19: Water Treatment Capacity: | E19: =E15*1.3*1.29 -> 46035.35289 | F19: 1000 GALS | G19: =1.97*(1.05^25) -> 6.671119234 | H19: =E19*G19 -> 307107.3281 | K19: =H19 -> 307107.3281
C20: f) | D20: Water Waste Disposal: | E20: =E19*0.29 -> 13350.25234 | F20: 1000 GALS | G20: =3.82*(1.05^25) -> 12.93587587 | H20: =E20*G20 -> 172697.2072 | K20: =H20 -> 172697.2072
B22: Total Direct Annual Costs (TDAC) | J22: TDAC = | K22: =SUM(K10:K21) -> 2503773.625
B24: INDIRECT ANNUAL COSTS
B25: (6) | C25: Overhead | E25: 0.3 | F25: % WT Labor | I25: =E25*I12 -> 25182.56107 | K25: =I25 -> 25182.56107
B26: (7) | C26: Administrative Charges, Property Taxes, Insurance | E26: 0.04 | F26: % total capital | I26: =E26*'3-14 EU2 WI TCI'!K63 -> 184000 | K26: =I26 -> 184000
C27: Capital Recovery Factor [see inputs below] | E27: =($E$41/100*POWER((1+($E$41/100)),$E$42))/((POWER(((1+$E$41/100)),$E$42))-1) -> 0.09439292574
B28: (8) | C28: Capital Recovery | J28: CRF * TCI = | K28: =E27*'3-14 EU2 WI TCI'!K63 -> 434207.4584
B30: Total Indirect Annual Costs (TIAC) | J30: TIAC = | K30: =SUM(K23:K28) -> 643390.0195
B32: TOTAL ANNUALIZED COSTS (TAC) | J32: TAC = (TDAC) + (TIAC) = | K32: =K22+K30 -> 3147163.645
B34: Cost Effectiveness Summary
B36: TOTAL TONS NOx AVOIDED PER YEAR | J36: = | K36: ='3-3 Ranking-NOx'!F13 -> 1724.99
B38: COST EFFECTIVENESS ($ PER TON AVOIDED) | J38: (TAC)/(TPY) = | K38: =K32/K36 -> 1824.453269
D40: Data Inputs for Capital Recovery Factor & Sinking Fund Factor:
D41: Annual Interest Rate (EPA OAQPS Control Cost Manual) | E41: 7 | F41: %
D42: Project Life (EPA OAQPS Control Cost Manual) | E42: 20 | F42: years
D43: Catalyst Life | E43: N/A | F43: years
D44: Asset Utilization | E44: 100 | F44: %
B47: 1 | C47: For the water injection option, costs have been estimated to expand water treatment capacity. Consideration of source water (i.e. wells) would likely be an additional factor.
B48: 2 | C48: Continuous emissions monitoring system upgrade is included in capital costs under Reagent Prep/Water Treatment/Structure.
B49: 3 | C49: Construction costs associated directly with water injection installation was conservatively estimated at half the capital cost. This estimate is low based on the assumption that a complete water treatment system will be required to add water injection. This should be viewed as an engineering estimate only.
B50: 4 | C50: Unit operator costs were excluded as these costs were not specified in vendor quotes and/or appropriate literature.
B51: 5 | C51: Operator and supervisory labor costs were excluded as these costs were not specified in vendor quotes and/or appropriate literature.

Sheet 3-16 EU5-6 SCR_WI TCI
B1: Table 3-16. GVEA North Pole Facility - Capital Costs for SCR on the Combined Cycle Gas Turbines (EU IDs 5 and 6)
J3: Shaded cells indicate user inputs.
B4: Total Capital Investment Determination - SCR | J4: Date:
B5: Project: | D5: GVEA NP - PM2.5 BACT Analysis (EU ID 5 & 6 - LM6000) | J5: Prepared By:
J6: Checked By:
B7: *Notes regarding pertinent cost information and cost exclusion reasoning is included on the separate footnote reference page. | J7: Rev:
B8: Capital Costs
B9: DIRECT COSTS | E9: QTY | F9: UNIT | G9: UNIT COST | H9: TOTAL MATERIALS COST | I9: TOTAL LABOR COST
B11: (1) | C11: Purchased equipment and material costs
C12: (a) | D12: Basic equipment
D13: SCR1,2,3,4,5 | E13: 1 | F13: EA | G13: 1197900 | H13: =E13*G13 -> 1197900 | I13: -
D14: Water treatment upgrades, reagent prep structure upgrades | E14: 1 | F14: EA | G14: 1706000 | H14: =E14*G14 -> 1706000
J15: TOTAL = | K15: =SUM(H13:H14) -> 2903900
C16: (b) | D16: Instrumentation
D17: Total Instrumentation6 | F17: EA | H17: Included above | I17: -
J18: TOTAL = | K18: =SUM(H17:H17) -> 0
C19: (c) | D19: Freight
D20: SCR Freight7 | E20: 0.1 | F20: % MATL COST | G20: =G13*E20 -> 119790 | H20: =G20 -> 119790 | I20: -
J21: TOTAL = | K21: =SUM(H20:H20) -> 119790
C22: (d) | D22: Labor
D23: Labor - shop fab | E23: 2075 | F23: MH | G23: 68 | I23: =E23*G23 -> 141100
D24: Labor - onsite | E24: 4340 | F24: MH | G24: 105 | I24: =E24*G24 -> 455700
J25: TOTAL = | K25: =SUM(I23:I24) -> 596800
C26: (e ) | D26: Startup Spares
D27: Startup Spare Parts for SCR | E27: 0.005 | F27: % MATL COST | G27: =G13*E27 -> 5989.5 | H27: =E27*G13 -> 5989.5 | I27: -
J28: TOTAL = | K28: =SUM(H27) -> 5989.5
C29: (f) | D29: Vendor representatives fees
D30: Fab Site Vendor Representatives fees (enter no. of days and daily rate) | E30: 10 | F30: Days | G30: 1800 | I30: =G30*E30 -> 18000
D31: Onsite Vendor Representatives fees (enter no. of days and daily rate) | E31: 8 | F31: Days | G31: 2500 | I31: =G31*E31 -> 20000
J32: TOTAL = | K32: =SUM(I30:I31) -> 38000
B33: Purchased Equipment and Material Cost (PEMC) | J33: PEMC = | K33: =K15+K18+K21+K25+K28+K32 -> 3664479.5
B35: (2) | C35: Direct Installation Costs8,9
C36: (a) | D36: Concrete | F36: CY | H36: =E36*G36 -> 0 | K36: =H36+I36 -> 0
C37: (b) | D37: Piling | F37: TON | H37: =E37*G37 -> 0 | K37: =H37+I37 -> 0
C38: (c) | D38: Structural steel | F38: TON | H38: 0 | K38: 0
C39: (d) | D39: Electrical | F39: LOT | H39: 0 | K39: 0
C40: (e ) | D40: Painting | F40: SF | H40: 0 | K40: 0
C41: (f) | D41: Insulation | F41: LOT | H41: 0 | K41: 0
C42: (g) | D42: Abovegrade piping | F42: LF | H42: 0 | K42: 0
C43: (h) | D43: Functional Checkouts
D44: Functional Checkout - fab site, enter %: | F44: % offsite fab labor | I44: =G44*I23 -> 0 | K44: 0
D45: Funtional Checkout - onsite, enter % | F45: % onsite fab labor | I45: =G45*I24 -> 0 | K45: 0
D46: Contractor Commissioning, enter %: | F46: % of equipment total cost | I46: =G46*K15 -> 0 | K46: 0
B47: Direct Installation Costs (DIC) - 1 x SCR Equipment Capital | J47: DIC = | K47: =K15 -> 2903900
B50: Total Direct Costs (TDC) | J50: TDC = (PEMC) + (DIC) = | K50: =K33+K47 -> 6568379.5
B53: INDIRECT COSTS
B54: (3) | C54: Engineering, Procurement & Construction Support Services | E54: 0.18 | F54: % TDC | I54: =E54*K50 -> 1182308.31
B55: (4) | C55: Performance tests | E55: 1 | F55: EA | G55: 10000 | I55: =E55*G55 -> 10000
B56: Total Indirect Costs (TIC) | J56: TIC = | K56: =SUM(I54:I55) -> 1192308.31
B59: MANAGEMENT AND CONTINGENCY COSTS
B60: (5) | C60: Unit Operator Costs10 | F60: % TDC | K60: Excluded in this estimate.
B61: (6) | C61: Contingency | E61: 0.3 | F61: % PEMC | I61: =E61*K33 -> 1099343.85
B62: Total Management and Contingency Costs (TM&CC) | J62: TM & CC = | K62: =SUM(I60:I61) -> 1099343.85
B65: TOTAL CAPITAL INVESTMENT (TCI) | J65: TCI = (TDC)+(TIC)+(TM&CC) = | K65: =K50+K56+K62 -> 8860031.66
B68: 1 | C68: Source of SCR Capital Costs: Innovative Steam Technologies (IST).
B69: 2 | C69: The following items are included in cost of $1,197,900: SCR Catalyst Blocks, SCR Catalyst Loading Cart, SCR Catalyst Frame, Jib Crane, Complete Urea System (Dry Urea Silo, Urea Mixing Tank with the immersion heater and mixing agitator, Urea Transfer Pump unit, urea storage tank, urea feeding pump unit), Valves & Instruments required for Urea system operation, AFCU Skid including dilution air blower, Ammonia Injection Grid & Ammonia Manifold Distribution Header, Stack Cap is also included to protect the SCR catalyst from water ingress.
B70: 3 | C70: IST also gave a quote for an aqueous ammonia-based system $ 838,200. This amount was inclusive of same equipment as above with the addition of electric heater & vaporizer chamber to the AFCU and removal of the urea system.
B71: 4 | C71: Excluded Items: Interconnecting piping between AFCU Skid and the Ammonia Manifold Distribution Header; Interconnecting piping between the Manifold Distribution Header up to the Ammonia Injection Grid at the module injection points; Interconnecting piping between each major equipment of the Urea System.
B72: 5 | C72: Other modifications that need to be done to the current OTSG which have not been included in the price above, is to make sure the sampling test ports upstream and downstream of the CO & SCR catalysts are existent. CEM port at the stack would be required as well and possibly some pressure test ports upstream and downstream of the SCR catalyst. The ammonia injection grid connections on the CO module casing, just above the CO catalyst would need to be made as well (there would need to be about 12, 2”NPS Sch40 BW connections that would go through the casing for the AIG lances).
B73: 6 | C73: Continuous emissions monitoring system was not included in capital costs, though upgrades to the existing system may be needed.
B74: 7 | C74: Based on BACT analysis costs for similar SCR installation on CTs in Alaska.
B75: 8 | C75: For construction costs, installation was estimated at one times the capital cost. This seems reasonable given the OTSG (Turbine No. 5) has been built with enough empty duct cavity for a future SCR provision. This should be viewed as an engineering estimate only.
B76: 9 | C76: Although we have assumed the same costs for Turbine No. 6, the footprint where the turbine and potential add-on control equipment would go is limited. There would have to be additional interaction with IST to determine how that translates into additional construction costs. There would have to be additional interaction with IST to determine how that translates into additional construction costs.
B77: 10 | C77: Unit operator costs were excluded as these costs were not specified in vendor quotes and/or appropriate literature.
B78: 11 | C78: Annual direct cost for maintenance matrerials were excluded as vendor quotes did not specify quantities and/or type of materials needed.
B79: 12 | C79: Annual direct cost for SCR power consumption were excluded as vendor quotes did not specify system power requirements.
B80: 13 | C80: Indirect annual costs for operational overhead were excluded as vendor quotes did not specify overhead costs.

Sheet 3-17 EU5-6 SCR_WI CE
B1: Table 3-17. GVEA North Pole Facility - Annualized Costs for SCR on the Combined Cycle Gas Turbines (EU IDs 5 and 6)
I3: Shaded cells indicate user inputs
B4: Cost Effectiveness Determination - SCR | J4: Date:
B5: Project: | D5: GVEA NP - PM2.5 BACT Analysis (EU ID 5 & 6 - LM6000) | J5: Prepared By:
J6: Checked By:
B7: *Notes regarding pertinent cost information and cost exclusion reasoning is included on the separate footnote reference page. | J7: Rev:
B8: Annualized Costs
B9: DIRECT ANNUAL COSTS | E9: QTY | F9: UNIT | G9: UNIT COST | H9: TOTAL MATERIALS COST | I9: TOTAL LABOR COST | K9: TOTAL
B10: (1) | C10: Operating Labor | E10: =E12*2 -> 730 | F10: MH | G10: 105 | I10: =E10*G10 -> 76650 | K10: =I10 -> 76650
B11: (2) | C11: Supervisory Labor | E11: =E12/2 -> 182.5 | F11: MH | G11: 125 | I11: =E11*G11 -> 22812.5 | K11: =I11 -> 22812.5
B12: (3) | C12: Maintenance Labor | E12: =365*E48/100 -> 365 | F12: MH | G12: 105 | I12: =E12*G12 -> 38325 | K12: 38325
B13: (4) | C13: Maintenance Materials11 | F13: LOT | H13: Excluded in this estimate.
B14: (5) | C14: Utilities
C15: (a) | D15: Urea/DEF: | E15: =K39*(60)*2*2.2/2000 -> 56.82204 | F15: TON | G15: 356 | H15: =E15*G15 -> 20228.64624 | K15: =H15 -> 20228.64624
C16: (b) | D16: Energy12: | F16: kWh | G16: 0.18 | H16: Excluded in this estimate.
B17: (6) | C17: Catalyst Replacement Costs (every 3 years)
C18: (a) | D18: Replacement of SCR Catalyst: % of total equipment cost | E18: 0.3 | F18: % total equip | G18: ='3-16 EU5-6 SCR_WI TCI'!K33 -> 3664479.5 | H18: =G18*E18 -> 1099343.85 | K18: =H18*E23 -> 341952.7357
C19: (b) | D19: Replacement labor for SCR Catalyst | E19: 180 | F19: MH | G19: 105 | I19: =E19*G19 -> 18900 | K19: =I19*E23 -> 5878.876481
C20: (c) | D20: Transport cost direct to site (SCR catalyst) | E20: 0.13 | F20: % replacement | I20: =E20*H18 -> 142914.7005 | K20: =I20*E23 -> 44453.85564
C21: (d) | D21: Transport cost for spent SCR catalyst | E21: 0.13 | F21: % replacement | I21: =E21*H18 -> 142914.7005 | K21: =I21*E23 -> 44453.85564
B23: Sinking Fund Factor [see inputs below]: | E23: =($E$45/100)/(POWER(1+($E$45/100),($E$47)/($E$48/100))-1) -> 0.3110516657
B25: Total Direct Annual Costs (TDAC) | J25: TDAC = | K25: =SUM(K10:K21) -> 594755.4697
B27: INDIRECT ANNUAL COSTS
B28: (7) | C28: Overhead13 | F28: % | H28: Excluded in this estimate. | I28: =E28*G28 -> 0 | K28: =I28 -> 0
B29: (8) | C29: Administrative Charges, Property Taxes, Insurance | E29: 0.04 | F29: % total capital | I29: =E29*'3-16 EU5-6 SCR_WI TCI'!K65 -> 354401.2664 | K29: =I29 -> 354401.2664
C30: Capital Recovery Factor [see inputs below] | E30: =($E$45/100*POWER((1+($E$45/100)),$E$46))/((POWER(((1+$E$45/100)),$E$46))-1) -> 0.09439292574
B31: (9) | C31: Capital Recovery | J31: CRF * TCI = | K31: =E30*'3-16 EU5-6 SCR_WI TCI'!K65 -> 836324.3106
B33: Total Indirect Annual Costs (TIAC) | J33: TIAC = | K33: =SUM(K28:K31) -> 1190725.577
B35: TOTAL ANNUALIZED COSTS (TAC) | J35: TAC = (TDAC) + (TIAC) = | K35: =K25+K33 -> 1785481.047
B37: Cost Effectiveness Summary
B39: TOTAL TONS NOx AVOIDED PER YEAR | J39: = | K39: ='3-3 Ranking-NOx'!F15 -> 430.47
B41: COST EFFECTIVENESS ($ PER TON AVOIDED) | J41: (TAC)/(TPY) = | K41: =K35/K39 -> 4147.747919
D44: Data Inputs for Capital Recovery Factor and Sinking Fund Factor:
D45: Annual Interest Rate (EPA OAQPS Control Cost Manual) | E45: 7 | F45: %
D46: Project Life (EPA OAQPS Control Cost Manual) | E46: 20 | F46: years
D47: Catalyst Life | E47: 3 | F47: years
D48: Asset Utilization | E48: 100 | F48: %
B51: 1 | C51: Source of SCR Capital Costs: Innovative Steam Technologies (IST).
B52: 2 | C52: The following items are included in cost of $1,197,900: SCR Catalyst Blocks, SCR Catalyst Loading Cart, SCR Catalyst Frame, Jib Crane, Complete Urea System (Dry Urea Silo, Urea Mixing Tank with the immersion heater and mixing agitator, Urea Transfer Pump unit, urea storage tank, urea feeding pump unit), Valves & Instruments required for Urea system operation, AFCU Skid including dilution air blower, Ammonia Injection Grid & Ammonia Manifold Distribution Header, Stack Cap is also included to protect the SCR catalyst from water ingress.
B53: 3 | C53: IST also gave a quote for an aqueous ammonia-based system $ 838,200. This amount was inclusive of same equipment as above with the addition of electric heater & vaporizer chamber to the AFCU and removal of the urea system.
B54: 4 | C54: Excluded Items: Interconnecting piping between AFCU Skid and the Ammonia Manifold Distribution Header; Interconnecting piping between the Manifold Distribution Header up to the Ammonia Injection Grid at the module injection points; Interconnecting piping between each major equipment of the Urea System.
B55: 5 | C55: Other modifications that need to be done to the current OTSG which have not been included in the price above, is to make sure the sampling test ports upstream and downstream of the CO & SCR catalysts are existent. CEM port at the stack would be required as well and possibly some pressure test ports upstream and downstream of the SCR catalyst. The ammonia injection grid connections on the CO module casing, just above the CO catalyst would need to be made as well (there would need to be about 12, 2”NPS Sch40 BW connections that would go through the casing for the AIG lances).
B56: 6 | C56: Continuous emissions monitoring system was not included in capital costs, though upgrades to the existing system may be needed.
B57: 7 | C57: Based on BACT analysis costs for similar SCR installation on CTs in Alaska.
B58: 8 | C58: For construction costs, installation was estimated at one times the capital cost. This seems reasonable given the OTSG (Turbine No. 5) has been built with enough empty duct cavity for a future SCR provision. This should be viewed as an engineering estimate only.
B59: 9 | C59: Although we have assumed the same costs for Turbine No. 6, the footprint where the turbine and potential add-on control equipment would go is limited. There would have to be additional interaction with IST to determine how that translates into additional construction costs. There would have to be additional interaction with IST to determine how that translates into additional construction costs.
B60: 10 | C60: Unit operator costs were excluded as these costs were not specified in vendor quotes and/or appropriate literature.
B61: 11 | C61: Annual direct cost for maintenance matrerials were excluded as vendor quotes did not specify quantities and/or type of materials needed.
B62: 12 | C62: Annual direct cost for SCR power consumption were excluded as vendor quotes did not specify system power requirements.
B63: 13 | C63: Indirect annual costs for operational overhead were excluded as vendor quotes did not specify overhead costs.

Sheet 3-18 EU ID 7 SCR TCI
B1: Table 3-18. GVEA North Pole Facility - Capital Costs for SCR on
B2: the Emergency Generator Engine (EU ID 7)
J3: Shaded cells indicate user inputs.
B4: Total Capital Investment Determination - SCR | J4: Date:
B5: Project: | D5: GVEA North Pole PM2.5 BACT Analysis - Emergency Generator Engine (EU-7) | J5: Prepared By:
J6: Checked By:
J7: Rev:
B8: Capital Costs
B9: DIRECT COSTS | E9: QTY | F9: UNIT | G9: UNIT COST | H9: TOTAL MATERIALS COST | I9: TOTAL LABOR COST
B11: (1) | C11: Purchased equipment and material costs
C12: (a) | D12: Basic equipment
D13: Total SCR System | F13: EA | H13: =E13*G13 -> 0
J14: TOTAL = | K14: =SUM(H13:H13) -> 0
C15: (b) | D15: Instrumentation
D16: Total Instrumentation | F16: EA | H16: =E16*G16 -> 0
J17: TOTAL = | K17: =SUM(H16:H16) -> 0
C18: (c) | D18: Freight
D19: SCR Freight | F19: % MATL COST | I19: =G19*H13 -> 0
J20: TOTAL = | K20: =SUM(I19:I19) -> 0
C21: (d) | D21: Labor
D22: Labor - offsite fab | F22: MH | I22: =E22*G22 -> 0
D23: Labor - onsite | F23: MH | I23: =E23*G23 -> 0
J24: TOTAL = | K24: =SUM(I22:I23) -> 0
C25: (e ) | D25: Startup Spares
D26: Startup Spare for SCR | F26: EA | H26: =E26*G26 -> 0
J27: TOTAL = | K27: =SUM(H26) -> 0
C28: (f) | D28: Vendor representatives fees
D29: Fab Site Vendor Representatives fees (enter no. of days and daily rate) | F29: Days | I29: =G29*E29 -> 0
D30: Onsite Vendor Representatives fees (enter no. of days and daily rate) | F30: Days | I30: =G30*E30 -> 0
J31: TOTAL = | K31: =SUM(I29:I30) -> 0
B32: Purchased Equipment and Material Cost (PEMC) | E32: Included in vendor installed estimate | J32: PEMC = | K32: =K14+K17+K20+K24+K27+K31 -> 0
B34: (2) | C34: Direct Installation Costs
C35: (a) | D35: Concrete | F35: CY | H35: =E35*G35 -> 0 | K35: =H35+I35 -> 0
C36: (b) | D36: Piling | F36: TON | H36: =E36*G36 -> 0 | K36: =H36+I36 -> 0
C37: (c) | D37: Structural steel | F37: TON | H37: 0 | K37: 0
C38: (d) | D38: Electrical | F38: LOT | H38: 0 | K38: 0
C39: (e ) | D39: Painting | F39: SF | H39: 0 | K39: 0
C40: (f) | D40: Insulation | F40: LOT | H40: 0 | K40: 0
C41: (g) | D41: Abovegrade piping | F41: LF | H41: 0 | K41: 0
C42: (h) | D42: Functional Checkouts
D43: Functional Checkout - fab site, enter %: | F43: % offsite fab labor | I43: =G43*I22 -> 0 | K43: 0
D44: Funtional Checkout - onsite, enter % | F44: % onsite fab labor | I44: =G44*I23 -> 0 | K44: 0
D45: Contractor Commissioning, enter %: | F45: % of equipment total cost | I45: =G45*K14 -> 0 | K45: 0
B46: Direct Installation Costs (DIC) | E46: Included in vendor installed estimate | J46: DIC = | K46: =SUM(K35:K45) -> 0
B49: Total Direct Costs (TDC) | E49: Included in vendor installed estimate | J49: TDC = (PEMC) + (DIC) = | K49: 100000
B52: INDIRECT COSTS
B53: (3) | C53: Engineering, Procurement & Construction Support Services | F53: % TDC | I53: =E53*K49 -> 0 | K53: Excluded in this estimate.
B54: (4) | C54: Performance tests | F54: EA | I54: =E54*G54 -> 0 | K54: Excluded in this estimate.
B55: Total Indirect Costs (TIC) | J55: TIC = | K55: =SUM(I53:I54) -> 0
B58: MANAGEMENT AND CONTINGENCY COSTS
B59: (5) | C59: Unit Operator Costs | F59: % TDC | K59: Excluded in this estimate.
B60: (6) | C60: Contingency | F60: 30% PEC | I60: =E60*K49 -> 0 | K60: Excluded in this estimate.
B61: Total Management and Contingency Costs (TM&CC) | J61: TM & CC = | K61: =SUM(I59:I60) -> 0
B64: TOTAL CAPITAL INVESTMENT (TCI) | J64: TCI = (TDC)+(TIC)+(TM&CC) = | K64: =K49+K55+K61 -> 100000

Sheet 3-19 EU ID 7 SCR CE
B1: Table 3-19. GVEA North Pole Facility - Annualized Costs for SCR on
B2: the Emergency Generator Engine (EU ID 7)
I3: Shaded cells indicate user inputs
B4: Cost Effectiveness Determination - SCR | J4: Date:
B5: Project: | D5: GVEA North Pole PM2.5 BACT Analysis - Emergency Generator Engine (EU-7) | J5: Prepared By:
J6: Checked By:
J7: Rev:
B8: Annualized Costs
B9: DIRECT ANNUAL COSTS | E9: QTY | F9: UNIT | G9: UNIT COST | H9: TOTAL MATERIALS COST | I9: TOTAL LABOR COST | K9: TOTAL
B10: (1) | C10: Operating Labor | F10: MH | I10: =E10*G10 -> 0 | K10: =I10 -> 0
B11: (2) | C11: Supervisory Labor | F11: MH | I11: =E11*G11 -> 0 | K11: =I11 -> 0
B12: (3) | C12: Maintenance Labor | F12: MH | I12: =E12*G12 -> 0 | K12: =I12 -> 0
B13: (4) | C13: Maintenance Materials | F13: LOT | H13: =E13*G13 -> 0 | K13: =H13 -> 0
B15: Total Direct Annual Costs (TDAC) | F15: Excluded in this estimate. | J15: TDAC = | K15: =SUM(K10:K13) -> 0
B17: INDIRECT ANNUAL COSTS
B18: (5) | C18: Overhead | F18: MH | H18: Excluded in this estimate. | I18: =E18*G18 -> 0 | K18: =I18 -> 0
B19: (6) | C19: Administrative Charges | F19: MH | H19: Excluded in this estimate. | I19: =E19*G19 -> 0 | K19: =I19 -> 0
B20: (7) | C20: Property tax | H20: Excluded in this estimate.
B21: (8) | C21: Insurance | H21: Excluded in this estimate.
C22: Capital Recovery Factor [see inputs below] | E22: =($E$37/100*POWER((1+($E$37/100)),$E$38))/((POWER(((1+$E$37/100)),$E$38))-1) -> 0.1423775027
B23: (9) | C23: Capital Recovery | J23: CRF * TCI = | K23: =E22*'3-18 EU ID 7 SCR TCI'!K64 -> 14237.75027
B25: Total Indirect Annual Costs (TIAC) | J25: TIAC = | K25: =SUM(K18:K23) -> 14237.75027
B27: TOTAL ANNUALIZED COSTS (TAC) | J27: TAC = (TDAC) + (TIAC) = | K27: =K15+K25 -> 14237.75027
B29: Cost Effectiveness Summary
B31: TOTAL TONS AVOIDED PER YEAR | J31: = | K31: ='3-3 Ranking-NOx'!F18 -> 0.45
B33: COST EFFECTIVENESS ($ PER TON AVOIDED) | J33: (TAC)/(TPY) = | K33: =K27/K31 -> 31639.44505
D36: Data Inputs for Capital Recovery Factor and Sinking Fund Factor:
D37: Annual Interest Rate (EPA OAQPS Control Cost Manual) | E37: 7 | F37: %
D38: Project Life (EPA OAQPS Control Cost Manual) | E38: 10 | F38: years
D39: Catalyst Life (Excluded) | F39: years
D40: Asset Utilization (Excluded) | F40: %

Sheet 3-20 EU ID 11 & 12 LNB CE
B1: Table 3-20 GVEA North Pole Facility - Capital Costs for Low NOX Burner on
B2: the Propane-fired Boilers (EU IDs 11 and 12)
J3: Shaded cells indicate user inputs.
B4: Total Capital Investment Determination - Low NOX Burners | J4: Date:
B5: Project: | D5: GVEA North Pole PM2.5 BACT Analysis - Bryan Steam Boiler (EUs ID 11 and 12, cost per boiler) | J5: Prepared By:
J6: Checked By:
J7: Rev:
B8: Capital Costs
B9: DIRECT COSTS | E9: QTY | F9: UNIT | G9: UNIT COST | H9: TOTAL MATERIALS COST | I9: TOTAL LABOR COST
B11: (1) | C11: Purchased equipment and material costs
C12: (a) | D12: Basic equipment
D13: Low NOx Burner Retrofit for Bryan RV500 Boiler, Unit 11 | E13: 1 | F13: EA | G13: 21500 | H13: =E13*G13 -> 21500
J14: TOTAL = | K14: =SUM(H13:H13) -> 21500
C15: (b) | D15: Instrumentation
D16: Total Instrumentation | F16: EA | H16: Included in above price
J17: TOTAL = | K17: =SUM(H16:H16) -> 0
C18: (c) | D18: Freight
D19: Freight for burners included in installation costs | F19: % MATL COST | H19: Included in above price | I19: =G19*H13 -> 0
J20: TOTAL = | K20: =SUM(I19:I19) -> 0
C21: (d) | D21: Labor
D22: Labor - offsite fab | E22: 0 | F22: MH | H22: None required | I22: =E22*G22 -> 0
D23: Labor - onsite | E23: 0 | F23: MH | G23: 0 | H23: Included in installation cost | I23: =E23*G23 -> 0
J24: TOTAL = | K24: =SUM(I22:I23) -> 0
C25: (e) | D25: Vendor representatives fees
D26: Fab Site Vendor Representatives fees (enter no. of days and daily rate) | E26: 0 | F26: Days | H26: None required | I26: =G26*E26 -> 0
D27: Onsite Vendor Representatives fees (enter no. of days and daily rate) | E27: 0 | F27: Days | H27: None required | I27: =G27*E27 -> 0
J28: TOTAL = | K28: =SUM(I26:I27) -> 0
B29: Purchased Equipment and Material Cost (PEMC) | J29: PEMC = | K29: =K14+K17+K20+K24+K28 -> 21500
B31: Direct Installation Costs (DIC) | J31: DIC = | K31: =15000 -> 15000
B34: Total Direct Costs (TDC) | J34: TDC = (PEMC) + (DIC) = | K34: =+K29+K31 -> 36500
B37: INDIRECT COSTS
B38: (2) | C38: Engineering, Procurement & Construction Support Services | F38: % TDC | I38: =E38*K34 -> 0 | K38: Excluded in this estimate.
B39: (3) | C39: Performance tests | F39: EA | I39: =G39*E39 -> 0 | K39: Excluded in this estimate.
B40: Total Indirect Costs (TIC) | J40: TIC = | K40: =SUM(I38:I39) -> 0
B43: MANAGEMENT AND CONTINGENCY COSTS
B44: (4) | C44: Unit Operator Costs | F44: % TDC | K44: Excluded in this estimate.
B45: (5) | C45: Contingency | E45: 0.1 | F45: % PEC | I45: =E45*K14 -> 2150
B46: Total Management and Contingency Costs (TM&CC) | J46: TM & CC = | K46: =SUM(I44:I45) -> 2150
B49: TOTAL CAPITAL INVESTMENT (TCI) | J49: TCI = (TDC)+(TIC)+(TM&CC) = | K49: =K34+K40+K46 -> 38650

Sheet 3-21 EU ID 11 & 12 LNB CE
B1: Table 3-21. GVEA North Pole Facility - Annualized Costs for Low NOX Burner on
B2: the Propane-fired Boilers (EU IDs 11 and 12)
I3: Shaded cells indicate user inputs
B4: Cost Effectiveness Determination - Low NOX Burners | J4: Date:
B5: Project: | D5: GVEA North Pole PM2.5 BACT Analysis - Bryan Steam Boiler (EU IDs 11 and 12, cost per boiler) | J5: Prepared By:
J6: Checked By:
J7: Rev:
B8: Annualized Costs
B9: DIRECT ANNUAL COSTS | E9: QTY | F9: UNIT | G9: UNIT COST | H9: TOTAL MATERIALS COST | I9: TOTAL LABOR COST | K9: TOTAL
B10: (1) | C10: Operating Labor | F10: MH | I10: =E10*G10 -> 0 | K10: =I10 -> 0
B11: (2) | C11: Supervisory Labor | F11: MH | I11: =E11*G11 -> 0 | K11: =I11 -> 0
B12: (3) | C12: Maintenance Labor | F12: MH | I12: =E12*G12 -> 0 | K12: =I12 -> 0
B13: (4) | C13: Maintenance Materials | F13: LOT | H13: =E13*G13 -> 0 | K13: =H13 -> 0
B15: Total Direct Annual Costs (TDAC) | F15: Excluded in this estimate | J15: TDAC = | K15: =SUM(K10:K13) -> 0
B17: INDIRECT ANNUAL COSTS
B18: (5) | C18: Overhead | F18: MH | H18: Excluded in this estimate. | I18: =E18*G18 -> 0 | K18: =I18 -> 0
B19: (6) | C19: Administrative Charges | F19: MH | H19: Excluded in this estimate. | I19: =E19*G19 -> 0 | K19: =I19 -> 0
B20: (7) | C20: Property tax | H20: Excluded in this estimate.
B21: (8) | C21: Insurance | H21: Excluded in this estimate.
C22: Capital Recovery Factor [see inputs below] | E22: =($E$37/100*POWER((1+($E$37/100)),$E$38))/((POWER(((1+$E$37/100)),$E$38))-1) -> 0.09439292574
B23: (9) | C23: Capital Recovery | J23: CRF * TCI = | K23: =E22*'3-20 EU ID 11 & 12 LNB CE'!K49 -> 3648.28658
B25: Total Indirect Annual Costs (TIAC) | J25: TIAC = | K25: =SUM(K18:K23) -> 3648.28658
B27: TOTAL ANNUALIZED COSTS (TAC) | J27: TAC = (TDAC) + (TIAC) = | K27: =K15+K25 -> 3648.28658
B29: Cost Effectiveness Summary
B31: TOTAL TONS AVOIDED PER YEAR | J31: = | K31: ='3-3 Ranking-NOx'!F20 -> 2.48
B33: COST EFFECTIVENESS ($ PER TON AVOIDED) | J33: (TAC)/(TPY) = | K33: =K27/K31 -> 1471.083298
D36: Data Inputs for Capital Recovery Factor:
D37: Annual Interest Rate (EPA OAQPS Control Cost Manual) | E37: 7 | F37: %
D38: Project Life (EPA OAQPS Control Cost Manual) | E38: 20 | F38: years
D39: Catalyst Life | E39: N/A | F39: years
D40: Asset Utilization | E40: N/A | F40: %

Sheet Table 3-22
A1: Table 3-22. GVEA North Pole Facility - NOX BACT Cost Effectiveness
A2: Summary1 for Each Emission Unit
A4: Control Technology | B4: NOX Emissions (tpy) | C4: Total Installed Capital ($) | D4: Total Annualized Cost ($/year) | E4: Total Direct Annual Cost ($/year) | F4: Cost Effectiveness ($/ton NOX removed based on PTE) | G4: Incremental Cost Effectiveness2 ($/incremental ton removed)
A6: Simple Cycle Gas Turbine (EU ID 1)
A7: SCR + Water Injection3 | B7: ='3-3 Ranking-NOx'!E6 -> 160 | C7: ='3-4 EU 1 SCR_WI TCI'!K66 -> 31262640 | D7: ='3-5 EU 1 SCR_WI CE'!K43 -> 7714785.02 | E7: ='3-5 EU 1 SCR_WI CE'!K33 -> 3485704.857 | F7: ='3-5 EU 1 SCR_WI CE'!K49 -> 5357.489597 | G7: =(D7-D8)/(B8-B7) -> 42455.39664
A8: SCR3 | B8: ='3-3 Ranking-NOx'!E7 -> 240 | C8: ='3-8 EU1 SCR TCI'!K64 -> 26213360 | D8: ='3-9 EU1 SCR CE'!K35 -> 4318353.289 | E8: ='3-9 EU1 SCR CE'!K25 -> 795463.1446 | F8: ='3-9 EU1 SCR CE'!K41 -> 3175.259771 | G8: =(D8-D9)/(B9-B8) -> 4834.202223
A9: Water Injection3 | B9: ='3-3 Ranking-NOx'!E8 -> 432 | C9: ='3-12 EU1 WI TCI'!K63 -> 4600000 | D9: ='3-13 EU1 WI CE'!K32 -> 3390186.462 | E9: ='3-13 EU1 WI CE'!K22 -> 2744376.496 | F9: ='3-13 EU1 WI CE'!K38 -> 2902.556902 | G9: ~
A10: Limited Operation (existing)4 | B10: ='3-3 Ranking-NOx'!E9 -> 1600 | C10: ~ | D10: ~ | E10: ~ | F10: ~ | G10: ~
A12: Simple Cycle Gas Turbine (EU ID 2)
A13: SCR + Water Injection3 | B13: ='3-3 Ranking-NOx'!E11 -> 236.3 | C13: ='3-6 EU 2 SCR_WI TCI'!K66 -> 31262640 | D13: ='3-7 EU 2 SCR_WI CE'!K43 -> 7476423.81 | E13: ='3-7 EU 2 SCR_WI CE'!K33 -> 3249763.592 | F13: ='3-7 EU 2 SCR_WI CE'!K49 -> 3515.504683 | G13: =(D13-D14)/(B14-B13) -> 26471.38264
A14: SCR3 | B14: ='3-3 Ranking-NOx'!E12 -> 354.45 | C14: ='3-10 EU 2 SCR TCI'!K64 -> 26213360 | D14: ='3-11 EU2 SCR CE'!K35 -> 4348829.95 | E14: ='3-11 EU2 SCR CE'!K25 -> 825939.8062 | F14: ='3-11 EU2 SCR CE'!K41 -> 2165.158921 | G14: =(D14-D15)/(B15-B14) -> 4237.784967
A15: Water Injection3 | B15: ='3-3 Ranking-NOx'!E13 -> 638.01 | C15: ='3-14 EU2 WI TCI'!K63 -> 4600000 | D15: ='3-15 EU2 WI CE'!K32 -> 3147163.645 | E15: ='3-15 EU2 WI CE'!K22 -> 2503773.625 | F15: ='3-15 EU2 WI CE'!K38 -> 1824.453269 | G15: ~
A16: Limited Operation (existing)4 | B16: ='3-3 Ranking-NOx'!E14 -> 2363 | C16: ~ | D16: ~ | E16: ~ | F16: ~ | G16: ~
A18: Combined Cycle Gas Turbines (EU IDs 5 and 6, cost per combustion turbine)
A19: SCR + Water Injection3 | B19: ='3-3 Ranking-NOx'!E15 -> 47.83 | C19: ='3-16 EU5-6 SCR_WI TCI'!K65 -> 8860031.66 | D19: ='3-17 EU5-6 SCR_WI CE'!K35 -> 1785481.047 | E19: ='3-17 EU5-6 SCR_WI CE'!K25 -> 594755.4697 | F19: ='3-17 EU5-6 SCR_WI CE'!K41 -> 4147.747919 | G19: ~
A20: Water Injection (existing)4 | B20: ='3-3 Ranking-NOx'!E16 -> 478.3 | C20: ~ | D20: ~ | E20: ~ | F20: ~ | G20: ~
A22: Emergency Generator Engine (EU ID 7)
A23: ='3-3 Ranking-NOx'!C18 -> Turbocharger and Aftercooler + Limited Operation + SCR | B23: ='3-3 Ranking-NOx'!E18 -> 0.05 | C23: ='3-18 EU ID 7 SCR TCI'!K49 -> 100000 | D23: ='3-19 EU ID 7 SCR CE'!K27 -> 14237.75027 | E23: ~ | F23: ='3-19 EU ID 7 SCR CE'!K33 -> 31639.44505 | G23: =F23 -> 31639.44505
A24: Turbocharger and Aftercooler + Limited Operation (existing)4 | B24: ='3-3 Ranking-NOx'!E19 -> 0.5 | C24: ~ | D24: ~ | E24: ~ | F24: ~ | G24: ~
A26: Propane-fired Boilers (EU IDs 11 and 12, cost per boiler)
A27: Low NOX | B27: ='3-3 Ranking-NOx'!E20 -> 0.62 | C27: ='3-20 EU ID 11 & 12 LNB CE'!K49 -> 38650 | D27: ='3-21 EU ID 11 & 12 LNB CE'!K27 -> 3648.28658 | E27: ~ | F27: $2,276 (>$78,000 based on actual emissions from 2014 and 2015)
A28: Good Combustion Practices (existing)4 | B28: ='3-3 Ranking-NOx'!E21 -> 3.1 | C28: ~ | D28: ~ | E28: ~ | F28: ~ | G28: ~
A30: Notes:
A31: 1 All emissions costs are on a per unit basis.
A32: 2 Incremental Cost Effectiveness is calculated as follows: [(Annualized Cost of Control Option)-(Annualized Cost of Next Control Option)]/[(Emissions of Next Control Option)-(Emissions of Control Option)]
A33: 3 The cost for this technology is underestimated because cost estimates for certain essential equipment and operating needs are not available or included. Site space constraints may make these technologies not feasible.
A34: 4 This technology is proposed as the baseline case.

Sheet Table - 3-23
A1: Table 3-23. GVEA North Pole Facility - Proposed NOX BACT and Associated
A2: Emission Rate for Each Emission Unit
A4: Emission Unit | C4: Fuel | D4: NOX BACT
A5: ID | B5: Description | D5: Description | E5: Emission Rate1
A7: 1 | B7: Simple Cycle Gas Turbine | C7: Fuel Oil | D7: Limited Operation (existing) | E7: 0.88 lb/MMBtu
A8: 2 | B8: Simple Cycle Gas Turbine | C8: Fuel Oil | D8: Limited Operation (existing) | E8: 0.88 lb/MMBtu
A9: 5, 6 | B9: Combined Cycle Gas Turbine | C9: LSR | D9: Water Injection (existing) | E9: 0.24 lb/MMBtu
A10: 7 | B10: Emergency Generator Engine | C10: Fuel Oil | D10: Turbocharger and Aftercooler + Limited Operation (existing) | E10: 0.0022 lb/hp-hr
A11: 11, 12 | B11: Boiler | C11: Propane | D11: Good Combustion Practices (existing) | E11: 13 lb/kgal
A13: Notes:
A14: 1 Emissions are on a per unit basis.

Sheet DO NOT INCLUDE - Identified-NOx
A1: Table A-1a. Summary of Identified NOX Control Technology - Liquid Fuel-Fired Simple Cycle Turbines > 25 MW (RBLC 15.190)
A3: Pollutant | B3: Control Technology Used | C3: Number of RBLC Entries (13 Total)
A4: NOX | B4: Water Injection | C4: 6
B5: None | C5: 4
B6: SCR | C6: 2
B7: Low NOX | C7: 2
B8: Good Combustion Practices | C8: 2
A9: Note: Data is based on a RBLC review from January 1, 2005 through September 15, 2015.
A11: Table A-1b. Summary of Identified NOX Control Technology - Liquid Fuel-Fired Combined Cycle Turbines > 25 MW (RBLC 15.290)
A13: Pollutant | B13: Control Technology Used | C13: Number of RBLC Entries (10 Total)
A14: NOX | B14: SCR | C14: 6
B15: Water Injection | C15: 5
B16: None | C16: 2
B17: Operational Limit | C17: 1
B18: Dry Low NOX | C18: 1
A19: Note: Data is based on a RBLC review from January 1, 2005 through September 15, 2015.
A21: Table A-1c. Summary of Identified NOX Control Technology - Large Diesel Engines > 500 hp (RBLC 17.110)
A23: Pollutant | B23: Control Technology Used | C23: Number of RBLC Entries (67 Total)
A24: NOX | B24: Federal Standards | C24: 17
B25: None | C25: 15
B26: Good Combustion Practices | C26: 10
B27: Limited Operation | C27: 8
B28: Turbocharger and Aftercooler | C28: 6
B29: Ignition Timing Retard | C29: 5
B30: Fuel Injection Timing Retard | C30: 3
B31: SCR | C31: 2
B32: Turbocharger | C32: 2
B33: Reduce NOX by 90 Percent | C33: 1
A34: Note: Data is based on a RBLC review from January 1, 2005 through September 15, 2015.
A36: Table A-1d. Summary of Identified NOX Control Technology - Natural Gas-Fired Commercial/Institutional Boilers <100 MMBtu/hr (RBLC 13.310)
A38: Pollutant | B38: Control Technology Used | C38: Number of RBLC Entries (99 Total)
A39: NOX | B39: Low NOX | C39: 51
B40: FGR | C40: 22
B41: Ultra Low NOX | C41: 18
B42: None | C42: 16
B43: Good Combustion Practices | C43: 8
B44: SCR | C44: 6
B45: Limited Operation | C45: 4
B46: Fuel Type | C46: 3
B47: Scrubber | C47: 1
A48: Note: Data is based on a RBLC review from January 1, 2005 through September 15, 2015.
